{"text_format":"1","workbook":"xlsx","n_sheets":7,"sheets":["Start","Mehrheitsrechner_ab_11_2014","Mehrheitsrechner_Art_3_II_Prot","Mehrheitsrechner_Art_238_II","Technische Tabelle","Tabelle1","Tabelle2"],"not_rendered":{"charts":0,"images":1,"macros":1,"external_links":0,"defined_names":1,"comments":0,"pivot_tables":0},"unopened":[],"bounds":{"document_bytes":16777216,"sheet_cells":100000,"rows_first":2000,"rows_last":500,"rows_between":2000,"halvings":0,"cell_chars":16384,"cell_head_chars":4096},"cells_cut":0,"cells_raw":0,"read":"whole","date_system":"1900"}

{"sheet":"Start","index":0,"n_rows":13,"n_cols":3,"rows_kept":13,"cut":false,"hidden":false,"merged":[[12,0,12,3],[2,1,2,2],[4,1,4,2]]}
[]
[]
[null,"Willkommen zum Mehrheitsrechner für Abstimmungen im Rat"]
[]
[null,"Wählen Sie bitte aus, nach welchem Verfahren abgestimmt werden soll (durch Mausklick auf das jeweilige Feld)"]
[]
[null,"Normales Abstimmungsverfahren ab 01.11.2014","Abstimmung ohne Vorschlag der Kommission"]
[]
[null," - Regelfall, wenn kein anderes Verfahren greift.","- Ausnahmefall nach Art. 238 Abs. 2 AEUV."]
[null," - Erfordert Mehrheit der MS und Mehrheit der Bevölkerung","- Erforderliche Mehrheit der MS erhöht."]
[]
[null,null,"## Art. 238 Abs. 2 AEUV bestimmt: \"Beschließt der Rat nicht auf Vorschlag der Kommission oder des Hohen Vertreters der Union für Außen- und Sicherheitspolitik […]\""]
["Alle Angaben sind überprüft und getestet. Für die Richtigkeit der Angaben sowie eine ordnungsgemäße Funktion der Datei kann jedoch keine Haftung übernommen werden. "]

{"sheet":"Mehrheitsrechner_ab_11_2014","index":1,"n_rows":67,"n_cols":7,"rows_kept":67,"cut":false,"hidden":false,"merged":[[1,2,1,5],[66,0,66,6],[61,0,61,6],[67,0,67,6],[69,0,69,6],[2,2,2,3],[64,0,64,6],[65,0,65,6],[68,0,68,6]]}
[]
[null,null,"Qualifizierte Mehrheit (Art. 16 Abs. 4 EUV) ab 1.11.20141"]
[]
["Mitgliedstaat","MS darf an Abstimmung teilnehmen? (X, wenn der MS teilnimmt)5","Stimmverhalten (J für Ja, N für Nein, E für Enthaltung)","Bevölkerung3","\"Zustimmende\" Bevölkerung","\"Ablehnende\" bzw. \"enhaltende\" Bevölkerung"]
["Deutschland","x","j",{"$f":"IF(B5=\"x\",82719022,0)","v":82719022},{"$f":"IF(AND(C5=\"j\",B5=\"x\"),1*D5,0)","v":82719022},{"$f":"IF(AND(C5<>\"j\",B5=\"x\"),1*D5,0)","v":0}]
["Frankreich","x","j",{"$f":"IF(B6=\"x\",67221943,0)","v":67221943},{"$f":"IF(AND(C6=\"j\",B6=\"x\"),1*D6,0)","v":67221943},{"$f":"IF(AND(C6<>\"j\",B6=\"x\"),1*D6,0)","v":0}]
["Vereinigtes Königreich","x","j",{"$f":"IF(B7=\"x\",66238007,0)","v":66238007},66238007,0]
["Italien","x","j",{"$f":"IF(B8=\"x\",61166142,0)","v":61166142},61166142,0]
["Spanien","x","j",{"$f":"IF(B9=\"x\",46659302,0)","v":46659302},46659302,0]
["Polen","x","j",{"$f":"IF(B10=\"x\",37976687,0)","v":37976687},37976687,0]
["Rumänien","x","j",{"$f":"IF(B11=\"x\",19523621,0)","v":19523621},19523621,0]
["Niederlande","x","j",{"$f":"IF(B12=\"x\",17321110,0)","v":17321110},17321110,0]
["Belgien","x","j",{"$f":"IF(B13=\"x\",11413058,0)","v":11413058},11413058,0]
["Griechenland","x","j",{"$f":"IF(B14=\"x\",10738928,0)","v":10738928},10738928,0]
["Tschechische Republik","x","j",{"$f":"IF(B15=\"x\",10493154,0)","v":10493154},10493154,0]
["Portugal","x","j",{"$f":"IF(B16=\"x\",10291027,0)","v":10291027},10291027,0]
["Ungarn","x","j",{"$f":"IF(B17=\"x\",9778371,0)","v":9778371},9778371,0]
["Schweden","x","j",{"$f":"IF(B18=\"x\",10157000,0)","v":10157000},10157000,0]
["Österreich","x","j",{"$f":"IF(B19=\"x\",8802000,0)","v":8802000},8802000,0]
["Bulgarien","x","j",{"$f":"IF(B20=\"x\",7050034,0)","v":7050034},7050034,0]
["Dänemark","x","j",{"$f":"IF(B21=\"x\",5774877,0)","v":5774877},5774877,0]
["Finnland","x","j",{"$f":"IF(B22=\"x\",5501930,0)","v":5501930},5501930,0]
["Slowakei","x","j",{"$f":"IF(B23=\"x\",5443120,0)","v":5443120},5443120,0]
["Irland","x","j",{"$f":"IF(B24=\"x\",4830392,0)","v":4830392},4830392,0]
["Kroatien","x","j",{"$f":"IF(B25=\"x\",4105493,0)","v":4105493},4105493,0]
["Litauen","x","j",{"$f":"IF(B26=\"x\",2808901,0)","v":2808901},2808901,0]
["Slowenien","x","j",{"$f":"IF(B27=\"x\",2066880,0)","v":2066880},2066880,0]
["Lettland","x","j",{"$f":"IF(B28=\"x\",1934379,0)","v":1934379},1934379,0]
["Estland","x","j",{"$f":"IF(B29=\"x\",1319133,0)","v":1319133},1319133,0]
["Zypern","x","j",{"$f":"IF(B30=\"x\",864236,0)","v":864236},864236,0]
["Luxemburg","x","j",{"$f":"IF(B31=\"x\",600124,0)","v":600124},600124,0]
["Malta","x","j",{"$f":"IF(B32=\"x\",475701,0)","v":475701},{"$f":"IF(C32=\"j\",1*D32,0)","v":475701},{"$f":"IF(C32<>\"j\",1*D32,0)","v":0}]
["Summe MS / Summe J",{"$f":"COUNTIF(B5:B32,\"X\")","v":28},{"$f":"'Technische Tabelle'!I34","v":28},{"$f":"SUM(D5:D32)","v":513274572},{"$f":"SUM(E5:E32)","v":513274572},{"$f":"SUM(F5:F32)","v":0}]
[]
["1. Mehrheit der Mitgliedstaaten?",null,{"$f":"IF(C36>=C37,\"Ja\",\"Nein\")","v":"Ja"}]
["Zustimmende Mitgliedstaaten",null,{"$f":"C33","v":28}]
["Benötigte Anzahl von Mitgliedstaaten2",null,{"$f":"ROUNDUP(B33*0.55,0)","v":16}]
[]
["2a. Bevölkerungskriterium?3",null,null,{"$f":"IF(D40>=D41,\"Ja\",\"Nein\")","v":"Ja"}]
["Zustimmende Bevölkerung",null,null,{"$f":"E33","v":513274572}]
["Benötigte Bevölkerungszahl (65%)",null,null,{"$f":"0.65*D33","v":333628471.80000001}]
[]
["2b. Sperrminorität?4",null,null,null,{"$f":"IF(B33=28, IF(C35=\"Nein\",\"Ja\",IF(E44>=4,IF(E47>E48,\"Ja\",\"Nein\"), \"Nein\")), 'Technische Tabelle'!L36)","v":"Nein"}]
["Nicht zustimmende Mitgliedstaaten",null,null,null,{"$f":"(SUM('Technische Tabelle'!J34,'Technische Tabelle'!K34))","v":0}]
["Minimum für Sperrminorität",null,null,null,{"$f":"IF(B33=28, 4, \"MS, die 35% der Bevölkerung repräsentieren, plus 1 MS\")","v":4}]
[]
["Nicht zustimmende Bevölkerung",null,null,null,{"$f":"F33","v":0}]
["Benötigte Bevölkerungszahl (> 35%)",null,null,null,{"$f":"0.35*D33","v":179646100.19999999}]
[]
["3. Verzögerung durch den Ioannina-Mechanismus?"]
[null,null,null,null,"Infolge der Ablehnung durch 24,75% der Mitgliedstaaten?",{"$f":"IF((F52>=F53),\"Ja\",\"Nein\")","v":"Nein"}]
[null,null,null,"Ablehnung",null,{"$f":"'Technische Tabelle'!J34","v":0}]
[null,null,null,"Benötigt für Ioannina",null,{"$f":"ROUNDUP(0.2475*B33,0)","v":7}]
[]
[null,null,null,null,"Infolge der Ablehnung durch 19,25% der Bevölkerung?",{"$f":"IF((F56>=F57),\"Ja\",\"Nein\")","v":"Nein"}]
[null,null,null,"Ablehnung",null,{"$f":"'Technische Tabelle'!M34","v":0}]
[null,null,null,"Benötigt für Ioannina",null,{"$f":"0.1925*D33","v":98805355.109999999}]
[]
["4. Ergebnis:",null,"Qualifizierte Mehrheit erreicht?",null,null,null,{"$f":"IF(C35=\"Nein\",\"Nein\",IF(AND(D39=\"Nein\",E43=\"Ja\"),\"Nein\",\"Ja\"))","v":"Ja"}]
[null,null,"Verzögerung durch den Ioannina-Mechanismus?",null,null,null,{"$f":"IF(OR(F51=\"Ja\", F55 = \"Ja\"),\"Ja\",\"Nein\")","v":"Nein"}]
[]
["Möchten Sie die Abstimmung nach einem anderen Abstimmungsverfahren durchführen? (Ihre Eintragung des Stimmverhaltens bleibt erhalten)"]
[]
[]
["1 Alle Angaben sind überprüft und getestet. Für die Richtigkeit der Angaben sowie das ordnungsgemäße Funktionieren der Datei kann jedoch keine Haftung übernommen werden."]
["2 Nach Art. 16 Abs. 4 UAbs. 1 EUV ist für die qualifizierte Mehrheit die Zustimmung 55% der Mitglieder des Rates erforderlich, jedoch nicht weniger als 15 Ratsmitglieder."]
["3  Die Zahlen ergeben sich aus Art. 1 des Anhangs III der Geschäftsordnung des Rates in der jeweils aktuellen Fassung."]

{"sheet":"Mehrheitsrechner_Art_3_II_Prot","index":2,"n_rows":65,"n_cols":9,"rows_kept":65,"cut":false,"hidden":true,"merged":[[64,0,64,6],[1,2,1,6],[63,0,63,6],[2,2,2,3],[59,0,59,6],[60,0,60,6],[62,0,62,6],[61,0,61,6],[56,0,56,6]]}
[]
[null,null,"Qualifizierte Mehrheit nach Art. 3 Abs. 2 ÜbBestProt1"]
[]
["Mitgliedstaat","MS darf an Abstimmung teilnehmen? (X, wenn der MS teilnimmt)5","Stimmverhalten (J für Ja, N für Nein, E für Enthaltung)","Stimmenzahl","Zustimmende Stimmen ","Bevölkerung3","\"Zustimmende\" Bevölkerung"]
["Deutschland","x","j",{"$f":"IF(B5=\"x\",29,0)","v":29},{"$f":"IF(C5=\"j\",1*D5,0)","v":29},{"$f":"IF(B5=\"x\",81089331,0)","v":81089331},{"$f":"IF(C5=\"j\",F5,0)","v":81089331}]
["Frankreich","x","j",{"$f":"IF(B6=\"x\",29,0)","v":29},{"$f":"IF(C6=\"j\",1*D6,0)","v":29},{"$f":"IF(B6=\"x\",66352469,0)","v":66352469},{"$f":"IF(C6=\"j\",F6,0)","v":66352469}]
["Vereinigtes Königreich","x","j",29,29,{"$f":"IF(B7=\"x\",64767115,0)","v":64767115},64767115]
["Italien","x","j",29,29,{"$f":"IF(B8=\"x\",61438480,0)","v":61438480},61438480]
["Spanien","x","j",{"$f":"IF(B9=\"x\",27,0)","v":27},27,{"$f":"IF(B9=\"x\",46439864,0)","v":46439864},46439864]
["Polen","x","j",{"$f":"IF(B10=\"x\",27,0)","v":27},27,{"$f":"IF(B10=\"x\",38005614,0)","v":38005614},38005614]
["Rumänien","x","j",{"$f":"IF(B11=\"x\",14,0)","v":14},14,{"$f":"IF(B11=\"x\",19861408,0)","v":19861408},19861408]
["Niederlande","x","j",{"$f":"IF(B12=\"x\",13,0)","v":13},13,{"$f":"IF(B12=\"x\",17155169,0)","v":17155169},17155169]
["Belgien","x","j",{"$f":"IF(B13=\"x\",12,0)","v":12},12,{"$f":"IF(B13=\"x\",11258434,0)","v":11258434},11258434]
["Griechenland","x","j",{"$f":"IF(B14=\"x\",12,0)","v":12},{"$f":"IF(C14=\"j\",1*D14,0)","v":12},{"$f":"IF(B14=\"x\",10846979,0)","v":10846979},{"$f":"IF(C14=\"j\",F14,0)","v":10846979}]
["Tschechische Republik","x","j",{"$f":"IF(B15=\"x\",12,0)","v":12},{"$f":"IF(C15=\"j\",1*D15,0)","v":12},{"$f":"IF(B15=\"x\",10419743,0)","v":10419743},{"$f":"IF(C15=\"j\",F15,0)","v":10419743}]
["Portugal","x","j",{"$f":"IF(B16=\"x\",12,0)","v":12},12,{"$f":"IF(B16=\"x\",10374822,0)","v":10374822},10374822]
["Ungarn","x","j",{"$f":"IF(B17=\"x\",12,0)","v":12},12,{"$f":"IF(B17=\"x\",9855571,0)","v":9855571},9855571]
["Schweden","x","j",{"$f":"IF(B18=\"x\",10,0)","v":10},10,{"$f":"IF(B18=\"x\",9790000,0)","v":9790000},9790000]
["Österreich","x","j",{"$f":"IF(B19=\"x\",10,0)","v":10},10,{"$f":"IF(B19=\"x\",8581500,0)","v":8581500},8581500]
["Bulgarien","x","j",{"$f":"IF(B20=\"x\",10,0)","v":10},10,{"$f":"IF(B20=\"x\",7202198,0)","v":7202198},7202198]
["Dänemark","x","j",{"$f":"IF(B21=\"x\",7,0)","v":7},{"$f":"IF(C21=\"j\",1*D21,0)","v":7},{"$f":"IF(B21=\"x\",5653357,0)","v":5653357},{"$f":"IF(C21=\"j\",F21,0)","v":5653357}]
["Finnland","x","j",7,{"$f":"IF(C22=\"j\",1*D22,0)","v":7},{"$f":"IF(B22=\"x\",5471753,0)","v":5471753},{"$f":"IF(C22=\"j\",F22,0)","v":5471753}]
["Slowakei","x","j",7,7,{"$f":"IF(B23=\"x\",5403134,0)","v":5403134},5403134]
["Irland","x","j",7,7,{"$f":"IF(B24=\"x\",4625885,0)","v":4625885},4625885]
["Kroatien","x","j",7,7,{"$f":"IF(B25=\"x\",4225316,0)","v":4225316},4225316]
["Litauen","x","j",7,7,{"$f":"IF(B26=\"x\",2921262,0)","v":2921262},2921262]
["Slowenien","x","j",{"$f":"IF(B27=\"x\",4,0)","v":4},4,{"$f":"IF(B27=\"x\",2062874,0)","v":2062874},2062874]
["Lettland","x","j",{"$f":"IF(B28=\"x\",4,0)","v":4},4,{"$f":"IF(B28=\"x\",1986096,0)","v":1986096},1986096]
["Estland","x","j",{"$f":"IF(B29=\"x\",4,0)","v":4},4,{"$f":"IF(B29=\"x\",1313271,0)","v":1313271},1313271]
["Zypern","x","j",{"$f":"IF(B30=\"x\",4,0)","v":4},4,{"$f":"IF(B30=\"x\",847008,0)","v":847008},847008]
["Luxemburg","x","j",{"$f":"IF(B31=\"x\",4,0)","v":4},4,{"$f":"IF(B31=\"x\",562958,0)","v":562958},562958]
["Malta","x","j",{"$f":"IF(B32=\"x\",3,0)","v":3},3,{"$f":"IF(B32=\"x\",429344,0)","v":429344},429344]
["Summe teilnehmend / J",{"$f":"COUNTIF(B5:B32,\"X\")","v":28},{"$f":"'Technische Tabelle'!N34","v":28},{"$f":"SUM(D5:D32)","v":352},{"$f":"SUM(E5:E32)","v":352},{"$f":"SUM(F5:F32)","v":508940955},{"$f":"SUM(G5:G32)","v":508940955}]
[null,null,null,null,null,null,null,null,"Sonderfall: Art. 3 Abs. 2 Satz 2, Abs. 3     UA. 3 S. 2 ÜbBestProt: 2/3 Mehrheit (Äquivalent zu Art. 238 Abs. 2, ohne Vorschlag der Kommission)"]
["1. Mehrheit der Mitgliedstaaten?",null,{"$f":"IF(C36>=C37,\"Ja\",\"Nein\")","v":"Ja"},null,null,null,null,null,{"$f":"IF(I36>=I37,\"Ja\",\"Nein\")","v":"Ja"}]
["Zustimmende Mitgliedstaaten",null,{"$f":"'Technische Tabelle'!N34","v":28},null,null,null,null,null,{"$f":"COUNTIF(C5:C32,\"j\")","v":28}]
["Benötigte Anzahl von Mitgliedstaaten",null,{"$f":"ROUNDUP(B33*0.55,0)","v":16},null,null,null,null,"(2/3)",{"$f":"ROUNDUP(B33*(2/3),0)","v":19}]
[]
["2. Ausreichende Stimmzahl?",null,null,{"$f":"IF(D40>=D41,\"Ja\",\"Nein\")","v":"Ja"},null,null,null,null,{"$f":"IF(I40>=I41,\"Ja\",\"Nein\")","v":"Ja"}]
["Ja-Stimmen",null,null,{"$f":"E33","v":352},null,null,null,null,{"$f":"SUM(E5:E32)","v":352}]
["Benötigte Stimmen für qualifizierte Mehrheit2",null,null,{"$f":"IF(B33=28, 260, ROUND(D33*260/352,0))","v":260},null,null,null,null,{"$f":"IF(B33=28, 260, ROUND(D33*260/352,0))","v":260}]
[]
["3. Bevölkerungskriterium?3",null,null,null,{"$f":"IF(E44>E45,\"Ja\",\"Nein\")","v":"Ja"},null,null,null,{"$f":"IF(I44>I45,\"Ja\",\"Nein\")","v":"Ja"}]
["Zustimmende Bevölkerung",null,null,null,{"$f":"G33","v":508940955},null,null,null,{"$f":"G33","v":508940955}]
["Benötigte Bevölkerungszahl (62 %)",null,null,null,{"$f":"F33*0.62","v":315543392.10000002},null,null,null,{"$f":"F33*0.62","v":315543392.10000002}]
[]
["4. Verzögerung durch den Ioannina-Mechanismus?4"]
[null,null,null,null,"Infolge der Ablehnung durch 37,5% der Mitgliedstaaten?",{"$f":"IF((F49>=F50),\"Ja\",\"Nein\")","v":"Nein"},null,null,{"$f":"IF(('Technische Tabelle'!O34)>=(0.3375*28),\"Ja\",\"Nein\")","v":"Nein"}]
[null,null,null,"Ablehnung",null,{"$f":"'Technische Tabelle'!O34","v":0},null,null,{"$f":"'Technische Tabelle'!O34","v":0}]
[null,null,null,"Benötigt für Ioannina",null,{"$f":"ROUNDUP(0.375*B33,0)","v":11},null,null,{"$f":"ROUNDUP(0.25*B33,0)","v":7}]
[null,null,null,null,"Infolge der Ablehnung durch 28,5% der Bevölkerung?",{"$f":"IF((F52>=F53),\"Ja\",\"Nein\")","v":"Nein"},null,null,{"$f":"IF('Technische Tabelle'!R34>=0.285*F33,\"Ja\",\"Nein\")","v":"Nein"}]
[null,null,null,"Ablehnung",null,{"$f":"'Technische Tabelle'!R34","v":0},null,null,{"$f":"'Technische Tabelle'!R34","v":0}]
[null,null,null,"Benötigt für Ioannina",null,{"$f":"0.285*F33","v":145048172.17499998},null,null,{"$f":"0.285*F33","v":145048172.17499998}]
[]
["5. Ergebnis:",null,"Qualifizierte Mehrheit erreicht?",null,null,null,{"$f":"IF(D40<D41,\"Nein\",IF(C36<C37,\"Nein\",IF(E44<E45,\"Nein\",\"Ja\")))","v":"Ja"},null,{"$f":"IF(I35=\"Nein\",\"Nein\",IF(I39=\"Nein\",\"Nein\",IF(I43=\"Nein\",\"Nein\",\"Ja\")))","v":"Ja"}]
[null,null,"Verzögerung durch den Ioannina-Mechanismus?",null,null,null,{"$f":"IF(OR(F48=\"Ja\", F51 = \"Ja\"),\"Ja\",\"Nein\")","v":"Nein"},null,{"$f":"IF(OR(I48=\"Ja\", I51 = \"Ja\"),\"Ja\",\"Nein\")","v":"Nein"}]
["Möchten Sie die Abstimmung nach einem anderen Abstimmungsverfahren durchführen? (Ihre Eintragung des Stimmverhaltens bleibt erhalten)"]
[]
[]
["1 Alle Angaben sind überprüft und getestet. Für die Richtigkeit der Angaben sowie eine ordnungsgemäße Funktion der Datei kann jedoch keine Haftung übernommen werden. "]
["Gemäß Art. 16 Abs. 5 EUV i.V.m. Art. 3 des Protokolls über die Übergangsbestimmungen zum Vertrag von Lissabon beschließt der Rat auf Antrag eines Mitgliedstaates mit qualifizierter Mehrheit gemäß Art. 3 Abs. 3 ÜbBestProt (entsprechend dem ehemaligen Art. 205 Abs. 2 EGV)."]
["2 Die Stimmenzahlen und Mehrheitserfordernisse ergeben sich aus Art. 3 Abs. 3 ÜbBestProt in der Fassung, die er durch Art. 20 des Vertrages über den Beitritt Kroatiens, ABl. L112 v. 24.04.2012, S. 6, erhalten hat. Soweit nicht alle Mitgliedstaaten teilnehmen, wird die benötigte Mehrheit proportional zur Anzahl der abstimmenden Stimmen reduziert."]
["3 Das Bevölkerungskriterium wird gemäß Art. 3 Absatz 3 UAbs. 4 des Protokolls über die Übergangsbestimmungen nur auf Antrag überprüft. Die Zahlen ergeben sich aus Art. 1 des Anhangs III der Geschäftsordnung des Rates in der jeweils aktuellen Fassung."]
["4 Der Beschluss des Rates zum Ioannina-Mechanismus nimmt nicht ausdrücklich auf die Abstimmung nach dem alten Verfahren Bezug; daher kann noch nicht abschließend geklärt werden, ob der Mechanismus hier in der Praxis angewendet werden wird. Sollte dies im Einzelfall entscheidungserheblich sein, halten Sie bitte mit Referat EA4 Rücksprache zum Vorgehen."]
["5 Gemeint sind Situationen nach Art. 238 Abs. 3 AEUV, in denen die Verträge die Mitwirkung von einigen Mitgliedstaaten ausschließen; das gilt insbesondere für Abstimmungen der Eurogruppe nach Art. 136 Abs. 1, 140 bs. 2 AEUV."]

{"sheet":"Mehrheitsrechner_Art_238_II","index":3,"n_rows":74,"n_cols":8,"rows_kept":74,"cut":false,"hidden":false,"merged":[[5,1,5,5],[3,2,3,5],[6,1,6,2],[74,0,74,7],[68,0,68,7],[69,0,69,7],[71,0,71,7],[70,0,70,7],[65,0,65,7],[72,0,72,7],[73,0,73,6]]}
[]
[]
[]
[]
[]
[null,"Qualifizierte Mehrheit nach Art. 238 Abs. 2 AEUV ab 1.11.20141"]
[]
["Mitgliedstaat","MS darf an Abstimmung teilnehmen? (X, wenn der MS teilnimmt)6","Stimmverhalten (J für Ja, N für Nein, E für Enthaltung)","Bevölkerung3","\"Zustimmende\" Bevölkerung","\"Ablehnende\" bzw. \"enhaltende\" Bevölkerung"]
["Deutschland","x","j",{"$f":"IF(B9=\"x\",82719022,0)","v":82719022},{"$f":"IF(C9=\"j\",1*D9,0)","v":82719022},{"$f":"IF(AND(C9<>\"j\",B9=\"x\"),1*D9,0)","v":0}]
["Frankreich","x","j",{"$f":"IF(B10=\"x\",67221943,0)","v":67221943},{"$f":"IF(C10=\"j\",1*D10,0)","v":67221943},{"$f":"IF(AND(C10<>\"j\",B10=\"x\"),1*D10,0)","v":0}]
["Vereinigtes Königreich","x","j",{"$f":"IF(B11=\"x\",66238007,0)","v":66238007},66238007,0]
["Italien","x","j",{"$f":"IF(B12=\"x\",61166142,0)","v":61166142},61166142,0]
["Spanien","x","j",{"$f":"IF(B13=\"x\",46659302,0)","v":46659302},46659302,0]
["Polen","x","j",{"$f":"IF(B14=\"x\",37976687,0)","v":37976687},37976687,0]
["Rumänien","x","j",{"$f":"IF(B15=\"x\",19523621,0)","v":19523621},19523621,0]
["Niederlande","x","j",{"$f":"IF(B16=\"x\",17321110,0)","v":17321110},17321110,0]
["Belgien","x","j",{"$f":"IF(B17=\"x\",11413058,0)","v":11413058},11413058,0]
["Griechenland","x","j",{"$f":"IF(B18=\"x\",10738928,0)","v":10738928},10738928,0]
["Tschechische Republik","x","j",{"$f":"IF(B19=\"x\",10493154,0)","v":10493154},10493154,0]
["Portugal","x","j",{"$f":"IF(B20=\"x\",10291027,0)","v":10291027},10291027,0]
["Ungarn","x","j",{"$f":"IF(B21=\"x\",9778371,0)","v":9778371},9778371,0]
["Schweden","x","j",{"$f":"IF(B22=\"x\",10157000,0)","v":10157000},10157000,0]
["Österreich","x","j",{"$f":"IF(B23=\"x\",8802000,0)","v":8802000},8802000,0]
["Bulgarien","x","j",{"$f":"IF(B24=\"x\",7050034,0)","v":7050034},7050034,0]
["Dänemark","x","j",{"$f":"IF(B25=\"x\",5774877,0)","v":5774877},5774877,0]
["Finnland","x","j",{"$f":"IF(B26=\"x\",5501930,0)","v":5501930},5501930,0]
["Slowakei","x","j",{"$f":"IF(B27=\"x\",5443120,0)","v":5443120},5443120,0]
["Irland","x","j",{"$f":"IF(B28=\"x\",4830392,0)","v":4830392},4830392,0]
["Kroatien","x","j",{"$f":"IF(B29=\"x\",4105493,0)","v":4105493},4105493,0]
["Litauen","x","j",{"$f":"IF(B30=\"x\",2808901,0)","v":2808901},2808901,0]
["Slowenien","x","j",{"$f":"IF(B31=\"x\",2066880,0)","v":2066880},2066880,0]
["Lettland","x","j",{"$f":"IF(B32=\"x\",1934379,0)","v":1934379},1934379,0]
["Estland","x","j",{"$f":"IF(B33=\"x\",1319133,0)","v":1319133},1319133,0]
["Zypern","x","j",{"$f":"IF(B34=\"x\",864236,0)","v":864236},864236,0]
["Luxemburg","x","j",{"$f":"IF(B35=\"x\",600124,0)","v":600124},600124,0]
["Malta","x","j",{"$f":"IF(B36=\"x\",475701,0)","v":475701},475701,{"$f":"IF(C36<>\"j\",1*D36,0)","v":0}]
["Summe Teilnehmende MS /  J",{"$f":"COUNTIF(B9:B36,\"X\")","v":28},{"$f":"'Technische Tabelle'!S34","v":28},{"$f":"SUM(D9:D36)","v":513274572},{"$f":"SUM(E9:E36)","v":513274572},{"$f":"SUM(F9:F36)","v":0}]
[]
["1. Mehrheit der Mitgliedstaaten?",{"$f":"IF(B40>=B41,\"Ja\",\"Nein\")","v":"Ja"}]
["Zustimmende Mitgliedstaaten",{"$f":"C37","v":28}]
["Benötigte Anzahl von Mitgliedstaaten (72 %)2",{"$f":"IF(B37=28, 21, ROUNDUP(B37*0.72,0))","v":21}]
[]
["2a. Bevölkerungskriterium?3",null,{"$f":"IF(C44>=C45,\"Ja\",\"Nein\")","v":"Ja"}]
["Zustimmende Bevölkerung",null,{"$f":"E37","v":513274572}]
["Benötigte Bevölkerungszahl (65%)",null,{"$f":"0.65*D37","v":333628471.80000001}]
[]
["2b. Sperrminorität?4",null,null,null,{"$f":"IF(B37=28, IF(B39=\"Nein\",\"Ja\",IF(E48>=4,IF(E51>E52,\"Ja\",\"Nein\"), \"Nein\")), \"Sperrminorität unanwendbar\")","v":"Nein"}]
["Nicht zustimmende Mitgliedstaaten",null,null,null,{"$f":"'Technische Tabelle'!T34+'Technische Tabelle'!U34","v":0}]
["Minimum für Sperrminorität",null,null,null,4]
[]
["Nicht zustimmende Bevölkerung",null,null,null,{"$f":"SUM(F9:F36)","v":0}]
["Benötigte Bevölkerungszahl (> 35%)",null,null,null,{"$f":"0.35*D37","v":179646100.19999999}]
[]
[]
["3. Verzögerung durch den Ioannina-Mechanismus?"]
[null,null,null,null,"Infolge der Ablehnung durch 15,4% der Mitgliedstaaten?",{"$f":"IF((F57>=F58),\"Ja\",\"Nein\")","v":"Nein"}]
[null,null,"Ablehnung",null,null,{"$f":"'Technische Tabelle'!T34","v":0}]
[null,null,"Benötigt für Ioannina",null,null,{"$f":"ROUNDUP(0.154*B37,0)","v":5}]
[null,null,null,null,"Infolge der Ablehnung durch 19,25% der Bevölkerung?",{"$f":"IF((F60>=F61),\"Ja\",\"Nein\")","v":"Nein"}]
[null,null,"Ablehnung",null,null,{"$f":"'Technische Tabelle'!W34","v":0}]
[null,null,"Benötigt für Ioannina",null,null,{"$f":"ROUNDUP(0.1925*D37,0)","v":98805356}]
[]
[]
["4. Ergebnis:","Qualifizierte Mehrheit erreicht?",null,null,null,null,null,{"$f":"IF(B37=28, IF(B39=\"Nein\",\"Nein\",IF(AND(C43=\"Nein\",E47=\"Ja\"),\"Nein\",\"Ja\")), IF(B39=\"Nein\",\"Nein\",IF(C43=\"Nein\",\"Nein\",\"Ja\")))","v":"Ja"}]
[null,"Verzögerung durch den Ioannina-Mechanismus?",null,null,null,null,null,{"$f":"IF(OR(F56=\"JA\", F59 = \"JA\"),\"Ja\",\"Nein\")","v":"Nein"}]
["Möchten Sie die Abstimmung nach einem anderen Abstimmungsverfahren durchführen? (Ihre Eintragung des Stimmverhaltens bleibt erhalten)"]
[]
[]
["1 Alle Angaben sind überprüft und getestet. Für die Richtigkeit der Angaben sowie das ordnungsgemäße Funktionieren der Datei kann jedoch keine Haftung übernommen werden."]
["2 Nach Art. 238 Abs. 2 AEUV ist für eine qualifizierte Mehrheit die Zustimmung von 72% der Mitglieder des Rates erforderlich."]
["3 Die Zahlen ergeben sich aus Art. 1 des Anhangs III der Geschäftsordnung des Rates in der jeweils aktuellen Fassung."]
["4 Wird das Bevölkerungskriterium verfehlt, weil weniger als vier Mitgliedstaaten widersprechen, die dennoch über 28 % der Bevölkerung auf sich vereinen, ist die nötige Sperrminorität von vier Mitgliedstaaten nicht erreicht und das Bevölkerungskriterium für die Annahme des Rechtsaktes gilt trotzdem als erfüllt. \nAllerdings ist der Verweis zwischen Art. 238 Abs. 2 AEUV und Art. 16 Abs. 4 EUV unklar formuliert, so dass erst in der Praxis geklärt werden muss, ob die besondere Regelung zur Sperrminorität nach Art. 16 Abs. 4 UAbs. 2 EUV bei diesem Abstimmungsverfahren tatsächlich zur Anwendung kommt. Sollte deren Anwendung im Einzelfall entscheidungserheblich sein, halten Sie bitte mit dem Referat EA4 Rücksprache zum weiteren Vorgehen.\nBei Abstimmungen, an denen nicht alle Mitgliedstaaten teilnehmen, gilt nach Art. 238 Abs. 3 lit. b AEUV keine Sonderregelung zur Sperrminorität."]
["5 Bitte beachten Sie, dass Abstimmungen der Euro-Gruppe nach Art. 163 Abs. 2 Uabs. 2 AEUV und Art. 140 Abs. 2 Uabs. 3 AEUV die Mitglieder der Eurogruppe nach den Mehrheiten des Art. 238 Abs. 3 lit. a AEUV entscheiden; diese werden im Mehrheitsrechner \"Normal\" abgebildet. Die Auswahl der Eurogruppe entfällt daher in dieser Option."]
["6 Die Verträge schließen u.U. die Beteiligung von einigen Mitgliedstaaten aus, dann richtet sich die Abstimmung nach Art. 238 Abs. 3 AEUV."]

{"sheet":"Technische Tabelle","index":4,"n_rows":38,"n_cols":23,"rows_kept":38,"cut":false,"hidden":true,"merged":[[0,18,0,22],[1,18,1,22],[0,13,0,17],[1,13,1,17],[37,1,37,6],[1,1,1,2],[1,3,1,4],[1,5,1,6],[0,1,0,6],[0,8,0,12],[1,8,1,12]]}
[null,"Berechnung Ioannina-Mehrheit",null,null,null,null,null,null,"Berechnung der Stimmen nach Beteiligung",null,null,null,null,"Berechnung der Stimmen nach Beteiligung",null,null,null,null,"Berechnung der Stimmen nach Beteiligung"]
[null,"Abstimmung ab 01.11.2014",null,"Abstimmung nach Art. 238 II ",null,"Abstimmung nach Art. 3 II ÜbBEstProt",null,null,"Abstimmung ab 01.11.",null,null,null,null,"Abstimmung nach Art 3 II ÜberBestProt",null,null,null,null,"Abstimmung nach Art 238 II"]
[null,"Stimmenzahl NEIN-Stimmen für Ioannina","Bevölkerungszahl NEIN-Stimmen für Ioannina","Stimmenzahl NEIN-Stimmen für Ioannina","Bevölkerungszahl NEIN-Stimmen für Ioannina","Stimmenzahl NEIN-Stimmen für Ioannina","Bevölkerungszahl NEIN-Stimmen für Ioannina",null,"Stimmenzahl JA abhängig von Beteiligung","Stimmenzahl NEIN abhängig von Beteiligung","Enthaltungen nach Beteiligung","Sperrminorität bei weniger als 28 MS","Bevölkerung NEIN für Ioannina","Stimmenzahl JA abhängig von Beteiligung","Stimmenzahl NEIN abhängig von Beteiligung","Enthaltungen nach Beteiligung","Sperrminorität bei weniger als 28 MS","Bevölkerung NEIN für Ioannina","Stimmenzahl JA abhängig von Beteiligung","Stimmenzahl NEIN abhängig von Beteiligung","Enthaltungen nach Beteiligung","Sperrminorität bei weniger als 28 MS","Bevölkerung NEIN für Ioannina"]
[]
["Deutschland",{"$f":"IF(Mehrheitsrechner_ab_11_2014!C5=\"n\",1,0)","v":0},{"$f":"IF(Mehrheitsrechner_ab_11_2014!C5=\"n\",1*Mehrheitsrechner_ab_11_2014!D5,0)","v":0},{"$f":"IF(Mehrheitsrechner_Art_238_II!B9=\"n\",1,0)","v":0},{"$f":"IF(Mehrheitsrechner_Art_238_II!B9=\"n\",1*Mehrheitsrechner_Art_238_II!C9,0)","v":0},{"$f":"IF(Mehrheitsrechner_Art_3_II_Prot!C5=\"n\",1,0)","v":0},{"$f":"IF(Mehrheitsrechner_Art_3_II_Prot!C5=\"n\",1*Mehrheitsrechner_Art_3_II_Prot!F5,0)","v":0},null,{"$f":"IF(AND(Mehrheitsrechner_ab_11_2014!C5=\"J\",Mehrheitsrechner_ab_11_2014!B5=\"x\"),1,0)","v":1},{"$f":"IF(AND(Mehrheitsrechner_ab_11_2014!C5=\"N\",Mehrheitsrechner_ab_11_2014!B5=\"x\"),1,0)","v":0},{"$f":"IF(AND(Mehrheitsrechner_ab_11_2014!C5=\"e\",Mehrheitsrechner_ab_11_2014!B5=\"x\"),1,0)","v":0},{"$f":"IF(Mehrheitsrechner_ab_11_2014!B3328, IF(AND(SUM(L6:L32)<1,'Technische Tabelle'!I5<1),Mehrheitsrechner_ab_11_2014!F5,0),0)","v":0},{"$f":"IF(AND(Mehrheitsrechner_ab_11_2014!C5=\"n\",Mehrheitsrechner_ab_11_2014!B5=\"x\"),1*Mehrheitsrechner_ab_11_2014!D5,0)","v":0},{"$f":"IF(AND(Mehrheitsrechner_Art_3_II_Prot!B5=\"x\",Mehrheitsrechner_Art_3_II_Prot!C5=\"J\"),1,0)","v":1},{"$f":"IF(AND(Mehrheitsrechner_Art_3_II_Prot!B5=\"x\",Mehrheitsrechner_Art_3_II_Prot!C5=\"N\"),1,0)","v":0},{"$f":"IF(AND(Mehrheitsrechner_ab_11_2014!H5=\"e\",Mehrheitsrechner_ab_11_2014!G5=\"x\"),1,0)","v":0},{"$f":"IF(Mehrheitsrechner_ab_11_2014!G3328, IF(AND(SUM(Q6:Q32)<1,'Technische Tabelle'!N5<1),Mehrheitsrechner_ab_11_2014!K5,0),0)","v":0},{"$f":"IF(AND(Mehrheitsrechner_Art_3_II_Prot!C5=\"n\",Mehrheitsrechner_Art_3_II_Prot!B5=\"x\"),1*Mehrheitsrechner_Art_3_II_Prot!F5,0)","v":0},{"$f":"IF(AND(Mehrheitsrechner_Art_238_II!B9=\"x\",Mehrheitsrechner_Art_238_II!C9=\"J\"),1,0)","v":1},{"$f":"IF(AND(Mehrheitsrechner_Art_238_II!B9=\"x\",Mehrheitsrechner_Art_238_II!C9=\"N\"),1,0)","v":0},{"$f":"IF(AND(Mehrheitsrechner_Art_238_II!C9=\"e\",Mehrheitsrechner_Art_238_II!B9=\"x\"),1,0)","v":0},{"$f":"IF(Mehrheitsrechner_ab_11_2014!L3328, IF(AND(SUM(V6:V32)<1,'Technische Tabelle'!S5<1),Mehrheitsrechner_ab_11_2014!P5,0),0)","v":0},{"$f":"IF(AND(Mehrheitsrechner_Art_238_II!C9=\"n\",Mehrheitsrechner_Art_238_II!B9=\"x\"),1*Mehrheitsrechner_Art_238_II!D9,0)","v":0}]
["Frankreich",{"$f":"IF(Mehrheitsrechner_ab_11_2014!C6=\"n\",1,0)","v":0},{"$f":"IF(Mehrheitsrechner_ab_11_2014!C6=\"n\",1*Mehrheitsrechner_ab_11_2014!D6,0)","v":0},{"$f":"IF(Mehrheitsrechner_Art_238_II!B10=\"n\",1,0)","v":0},{"$f":"IF(Mehrheitsrechner_Art_238_II!B10=\"n\",1*Mehrheitsrechner_Art_238_II!C10,0)","v":0},{"$f":"IF(Mehrheitsrechner_Art_3_II_Prot!C6=\"n\",1,0)","v":0},{"$f":"IF(Mehrheitsrechner_Art_3_II_Prot!C6=\"n\",1*Mehrheitsrechner_Art_3_II_Prot!F6,0)","v":0},null,{"$f":"IF(AND(Mehrheitsrechner_ab_11_2014!C6=\"J\",Mehrheitsrechner_ab_11_2014!B6=\"x\"),1,0)","v":1},{"$f":"IF(AND(Mehrheitsrechner_ab_11_2014!C6=\"N\",Mehrheitsrechner_ab_11_2014!B6=\"x\"),1,0)","v":0},{"$f":"IF(AND(Mehrheitsrechner_ab_11_2014!C6=\"e\",Mehrheitsrechner_ab_11_2014!B6=\"x\"),1,0)","v":0},{"$f":"IF(Mehrheitsrechner_ab_11_2014!B33<28, IF(AND(SUM(L7:L32)<1,'Technische Tabelle'!I6<1),Mehrheitsrechner_ab_11_2014!F6,0),0)","v":0},{"$f":"IF(AND(Mehrheitsrechner_ab_11_2014!C6=\"n\",Mehrheitsrechner_ab_11_2014!B6=\"x\"),1*Mehrheitsrechner_ab_11_2014!D6,0)","v":0},{"$f":"IF(AND(Mehrheitsrechner_Art_3_II_Prot!B6=\"x\",Mehrheitsrechner_Art_3_II_Prot!C6=\"J\"),1,0)","v":1},{"$f":"IF(AND(Mehrheitsrechner_Art_3_II_Prot!B6=\"x\",Mehrheitsrechner_Art_3_II_Prot!C6=\"N\"),1,0)","v":0},{"$f":"IF(AND(Mehrheitsrechner_ab_11_2014!H6=\"e\",Mehrheitsrechner_ab_11_2014!G6=\"x\"),1,0)","v":0},{"$f":"IF(Mehrheitsrechner_ab_11_2014!G33<28, IF(AND(SUM(Q7:Q32)<1,'Technische Tabelle'!N6<1),Mehrheitsrechner_ab_11_2014!K6,0),0)","v":0},{"$f":"IF(AND(Mehrheitsrechner_Art_3_II_Prot!C6=\"n\",Mehrheitsrechner_Art_3_II_Prot!B6=\"x\"),1*Mehrheitsrechner_Art_3_II_Prot!F6,0)","v":0},{"$f":"IF(AND(Mehrheitsrechner_Art_238_II!B10=\"x\",Mehrheitsrechner_Art_238_II!C10=\"J\"),1,0)","v":1},{"$f":"IF(AND(Mehrheitsrechner_Art_238_II!B10=\"x\",Mehrheitsrechner_Art_238_II!C10=\"N\"),1,0)","v":0},{"$f":"IF(AND(Mehrheitsrechner_Art_238_II!C10=\"e\",Mehrheitsrechner_Art_238_II!B10=\"x\"),1,0)","v":0},{"$f":"IF(Mehrheitsrechner_ab_11_2014!L33<28, IF(AND(SUM(V7:V32)<1,'Technische Tabelle'!S6<1),Mehrheitsrechner_ab_11_2014!P6,0),0)","v":0},{"$f":"IF(AND(Mehrheitsrechner_Art_238_II!C10=\"n\",Mehrheitsrechner_Art_238_II!B10=\"x\"),1*Mehrheitsrechner_Art_238_II!D10,0)","v":0}]
["Vereinigtes Königreich",{"$f":"IF(Mehrheitsrechner_ab_11_2014!C7=\"n\",1,0)","v":0},{"$f":"IF(Mehrheitsrechner_ab_11_2014!C7=\"n\",1*Mehrheitsrechner_ab_11_2014!D7,0)","v":0},{"$f":"IF(Mehrheitsrechner_Art_238_II!B11=\"n\",1,0)","v":0},{"$f":"IF(Mehrheitsrechner_Art_238_II!B11=\"n\",1*Mehrheitsrechner_Art_238_II!C11,0)","v":0},{"$f":"IF(Mehrheitsrechner_Art_3_II_Prot!C7=\"n\",1,0)","v":0},{"$f":"IF(Mehrheitsrechner_Art_3_II_Prot!C7=\"n\",1*Mehrheitsrechner_Art_3_II_Prot!F7,0)","v":0},null,{"$f":"IF(AND(Mehrheitsrechner_ab_11_2014!C7=\"J\",Mehrheitsrechner_ab_11_2014!B7=\"x\"),1,0)","v":1},{"$f":"IF(AND(Mehrheitsrechner_ab_11_2014!C7=\"N\",Mehrheitsrechner_ab_11_2014!B7=\"x\"),1,0)","v":0},{"$f":"IF(AND(Mehrheitsrechner_ab_11_2014!C7=\"e\",Mehrheitsrechner_ab_11_2014!B7=\"x\"),1,0)","v":0},{"$f":"IF(Mehrheitsrechner_ab_11_2014!B33<28, IF(AND(SUM(L8:L32)<1,'Technische Tabelle'!I7<1),Mehrheitsrechner_ab_11_2014!F7,0),0)","v":0},{"$f":"IF(AND(Mehrheitsrechner_ab_11_2014!C7=\"n\",Mehrheitsrechner_ab_11_2014!B7=\"x\"),1*Mehrheitsrechner_ab_11_2014!D7,0)","v":0},{"$f":"IF(AND(Mehrheitsrechner_Art_3_II_Prot!B7=\"x\",Mehrheitsrechner_Art_3_II_Prot!C7=\"J\"),1,0)","v":1},{"$f":"IF(AND(Mehrheitsrechner_Art_3_II_Prot!B7=\"x\",Mehrheitsrechner_Art_3_II_Prot!C7=\"N\"),1,0)","v":0},{"$f":"IF(AND(Mehrheitsrechner_ab_11_2014!H7=\"e\",Mehrheitsrechner_ab_11_2014!G7=\"x\"),1,0)","v":0},{"$f":"IF(Mehrheitsrechner_ab_11_2014!G33<28, IF(AND(SUM(Q8:Q32)<1,'Technische Tabelle'!N7<1),Mehrheitsrechner_ab_11_2014!K7,0),0)","v":0},{"$f":"IF(AND(Mehrheitsrechner_Art_3_II_Prot!C7=\"n\",Mehrheitsrechner_Art_3_II_Prot!B7=\"x\"),1*Mehrheitsrechner_Art_3_II_Prot!F7,0)","v":0},{"$f":"IF(AND(Mehrheitsrechner_Art_238_II!B11=\"x\",Mehrheitsrechner_Art_238_II!C11=\"J\"),1,0)","v":1},{"$f":"IF(AND(Mehrheitsrechner_Art_238_II!B11=\"x\",Mehrheitsrechner_Art_238_II!C11=\"N\"),1,0)","v":0},{"$f":"IF(AND(Mehrheitsrechner_Art_238_II!C11=\"e\",Mehrheitsrechner_Art_238_II!B11=\"x\"),1,0)","v":0},{"$f":"IF(Mehrheitsrechner_ab_11_2014!L33<28, IF(AND(SUM(V8:V32)<1,'Technische Tabelle'!S7<1),Mehrheitsrechner_ab_11_2014!P7,0),0)","v":0},{"$f":"IF(AND(Mehrheitsrechner_Art_238_II!C11=\"n\",Mehrheitsrechner_Art_238_II!B11=\"x\"),1*Mehrheitsrechner_Art_238_II!D11,0)","v":0}]
["Italien",{"$f":"IF(Mehrheitsrechner_ab_11_2014!C8=\"n\",1,0)","v":0},{"$f":"IF(Mehrheitsrechner_ab_11_2014!C8=\"n\",1*Mehrheitsrechner_ab_11_2014!D8,0)","v":0},{"$f":"IF(Mehrheitsrechner_Art_238_II!B12=\"n\",1,0)","v":0},{"$f":"IF(Mehrheitsrechner_Art_238_II!B12=\"n\",1*Mehrheitsrechner_Art_238_II!C12,0)","v":0},{"$f":"IF(Mehrheitsrechner_Art_3_II_Prot!C8=\"n\",1,0)","v":0},{"$f":"IF(Mehrheitsrechner_Art_3_II_Prot!C8=\"n\",1*Mehrheitsrechner_Art_3_II_Prot!F8,0)","v":0},null,{"$f":"IF(AND(Mehrheitsrechner_ab_11_2014!C8=\"J\",Mehrheitsrechner_ab_11_2014!B8=\"x\"),1,0)","v":1},{"$f":"IF(AND(Mehrheitsrechner_ab_11_2014!C8=\"N\",Mehrheitsrechner_ab_11_2014!B8=\"x\"),1,0)","v":0},{"$f":"IF(AND(Mehrheitsrechner_ab_11_2014!C8=\"e\",Mehrheitsrechner_ab_11_2014!B8=\"x\"),1,0)","v":0},{"$f":"IF(Mehrheitsrechner_ab_11_2014!B33<28, IF(AND(SUM(L9:L32)<1,'Technische Tabelle'!I8<1),Mehrheitsrechner_ab_11_2014!F8,0),0)","v":0},{"$f":"IF(AND(Mehrheitsrechner_ab_11_2014!C8=\"n\",Mehrheitsrechner_ab_11_2014!B8=\"x\"),1*Mehrheitsrechner_ab_11_2014!D8,0)","v":0},{"$f":"IF(AND(Mehrheitsrechner_Art_3_II_Prot!B8=\"x\",Mehrheitsrechner_Art_3_II_Prot!C8=\"J\"),1,0)","v":1},{"$f":"IF(AND(Mehrheitsrechner_Art_3_II_Prot!B8=\"x\",Mehrheitsrechner_Art_3_II_Prot!C8=\"N\"),1,0)","v":0},{"$f":"IF(AND(Mehrheitsrechner_ab_11_2014!H8=\"e\",Mehrheitsrechner_ab_11_2014!G8=\"x\"),1,0)","v":0},{"$f":"IF(Mehrheitsrechner_ab_11_2014!G33<28, IF(AND(SUM(Q9:Q32)<1,'Technische Tabelle'!N8<1),Mehrheitsrechner_ab_11_2014!K8,0),0)","v":0},{"$f":"IF(AND(Mehrheitsrechner_Art_3_II_Prot!C8=\"n\",Mehrheitsrechner_Art_3_II_Prot!B8=\"x\"),1*Mehrheitsrechner_Art_3_II_Prot!F8,0)","v":0},{"$f":"IF(AND(Mehrheitsrechner_Art_238_II!B12=\"x\",Mehrheitsrechner_Art_238_II!C12=\"J\"),1,0)","v":1},{"$f":"IF(AND(Mehrheitsrechner_Art_238_II!B12=\"x\",Mehrheitsrechner_Art_238_II!C12=\"N\"),1,0)","v":0},{"$f":"IF(AND(Mehrheitsrechner_Art_238_II!C12=\"e\",Mehrheitsrechner_Art_238_II!B12=\"x\"),1,0)","v":0},{"$f":"IF(Mehrheitsrechner_ab_11_2014!L33<28, IF(AND(SUM(V9:V32)<1,'Technische Tabelle'!S8<1),Mehrheitsrechner_ab_11_2014!P8,0),0)","v":0},{"$f":"IF(AND(Mehrheitsrechner_Art_238_II!C12=\"n\",Mehrheitsrechner_Art_238_II!B12=\"x\"),1*Mehrheitsrechner_Art_238_II!D12,0)","v":0}]
["Spanien",{"$f":"IF(Mehrheitsrechner_ab_11_2014!C9=\"n\",1,0)","v":0},{"$f":"IF(Mehrheitsrechner_ab_11_2014!C9=\"n\",1*Mehrheitsrechner_ab_11_2014!D9,0)","v":0},{"$f":"IF(Mehrheitsrechner_Art_238_II!B13=\"n\",1,0)","v":0},{"$f":"IF(Mehrheitsrechner_Art_238_II!B13=\"n\",1*Mehrheitsrechner_Art_238_II!C13,0)","v":0},{"$f":"IF(Mehrheitsrechner_Art_3_II_Prot!C9=\"n\",1,0)","v":0},{"$f":"IF(Mehrheitsrechner_Art_3_II_Prot!C9=\"n\",1*Mehrheitsrechner_Art_3_II_Prot!F9,0)","v":0},null,{"$f":"IF(AND(Mehrheitsrechner_ab_11_2014!C9=\"J\",Mehrheitsrechner_ab_11_2014!B9=\"x\"),1,0)","v":1},{"$f":"IF(AND(Mehrheitsrechner_ab_11_2014!C9=\"N\",Mehrheitsrechner_ab_11_2014!B9=\"x\"),1,0)","v":0},{"$f":"IF(AND(Mehrheitsrechner_ab_11_2014!C9=\"e\",Mehrheitsrechner_ab_11_2014!B9=\"x\"),1,0)","v":0},{"$f":"IF(Mehrheitsrechner_ab_11_2014!B33<28, IF(AND(SUM(L10:L32)<1,'Technische Tabelle'!I9<1),Mehrheitsrechner_ab_11_2014!F9,0),0)","v":0},{"$f":"IF(AND(Mehrheitsrechner_ab_11_2014!C9=\"n\",Mehrheitsrechner_ab_11_2014!B9=\"x\"),1*Mehrheitsrechner_ab_11_2014!D9,0)","v":0},{"$f":"IF(AND(Mehrheitsrechner_Art_3_II_Prot!B9=\"x\",Mehrheitsrechner_Art_3_II_Prot!C9=\"J\"),1,0)","v":1},{"$f":"IF(AND(Mehrheitsrechner_Art_3_II_Prot!B9=\"x\",Mehrheitsrechner_Art_3_II_Prot!C9=\"N\"),1,0)","v":0},{"$f":"IF(AND(Mehrheitsrechner_ab_11_2014!H9=\"e\",Mehrheitsrechner_ab_11_2014!G9=\"x\"),1,0)","v":0},{"$f":"IF(Mehrheitsrechner_ab_11_2014!G33<28, IF(AND(SUM(Q10:Q32)<1,'Technische Tabelle'!N9<1),Mehrheitsrechner_ab_11_2014!K9,0),0)","v":0},{"$f":"IF(AND(Mehrheitsrechner_Art_3_II_Prot!C9=\"n\",Mehrheitsrechner_Art_3_II_Prot!B9=\"x\"),1*Mehrheitsrechner_Art_3_II_Prot!F9,0)","v":0},{"$f":"IF(AND(Mehrheitsrechner_Art_238_II!B13=\"x\",Mehrheitsrechner_Art_238_II!C13=\"J\"),1,0)","v":1},{"$f":"IF(AND(Mehrheitsrechner_Art_238_II!B13=\"x\",Mehrheitsrechner_Art_238_II!C13=\"N\"),1,0)","v":0},{"$f":"IF(AND(Mehrheitsrechner_Art_238_II!C13=\"e\",Mehrheitsrechner_Art_238_II!B13=\"x\"),1,0)","v":0},{"$f":"IF(Mehrheitsrechner_ab_11_2014!L33<28, IF(AND(SUM(V10:V32)<1,'Technische Tabelle'!S9<1),Mehrheitsrechner_ab_11_2014!P9,0),0)","v":0},{"$f":"IF(AND(Mehrheitsrechner_Art_238_II!C13=\"n\",Mehrheitsrechner_Art_238_II!B13=\"x\"),1*Mehrheitsrechner_Art_238_II!D13,0)","v":0}]
["Polen",{"$f":"IF(Mehrheitsrechner_ab_11_2014!C10=\"n\",1,0)","v":0},{"$f":"IF(Mehrheitsrechner_ab_11_2014!C10=\"n\",1*Mehrheitsrechner_ab_11_2014!D10,0)","v":0},{"$f":"IF(Mehrheitsrechner_Art_238_II!B14=\"n\",1,0)","v":0},{"$f":"IF(Mehrheitsrechner_Art_238_II!B14=\"n\",1*Mehrheitsrechner_Art_238_II!C14,0)","v":0},{"$f":"IF(Mehrheitsrechner_Art_3_II_Prot!C10=\"n\",1,0)","v":0},{"$f":"IF(Mehrheitsrechner_Art_3_II_Prot!C10=\"n\",1*Mehrheitsrechner_Art_3_II_Prot!F10,0)","v":0},null,{"$f":"IF(AND(Mehrheitsrechner_ab_11_2014!C10=\"J\",Mehrheitsrechner_ab_11_2014!B10=\"x\"),1,0)","v":1},{"$f":"IF(AND(Mehrheitsrechner_ab_11_2014!C10=\"N\",Mehrheitsrechner_ab_11_2014!B10=\"x\"),1,0)","v":0},{"$f":"IF(AND(Mehrheitsrechner_ab_11_2014!C10=\"e\",Mehrheitsrechner_ab_11_2014!B10=\"x\"),1,0)","v":0},{"$f":"IF(Mehrheitsrechner_ab_11_2014!B33<28, IF(AND(SUM(L11:L32)<1,'Technische Tabelle'!I10<1),Mehrheitsrechner_ab_11_2014!F10,0),0)","v":0},{"$f":"IF(AND(Mehrheitsrechner_ab_11_2014!C10=\"n\",Mehrheitsrechner_ab_11_2014!B10=\"x\"),1*Mehrheitsrechner_ab_11_2014!D10,0)","v":0},{"$f":"IF(AND(Mehrheitsrechner_Art_3_II_Prot!B10=\"x\",Mehrheitsrechner_Art_3_II_Prot!C10=\"J\"),1,0)","v":1},{"$f":"IF(AND(Mehrheitsrechner_Art_3_II_Prot!B10=\"x\",Mehrheitsrechner_Art_3_II_Prot!C10=\"N\"),1,0)","v":0},{"$f":"IF(AND(Mehrheitsrechner_ab_11_2014!H10=\"e\",Mehrheitsrechner_ab_11_2014!G10=\"x\"),1,0)","v":0},{"$f":"IF(Mehrheitsrechner_ab_11_2014!G33<28, IF(AND(SUM(Q11:Q32)<1,'Technische Tabelle'!N10<1),Mehrheitsrechner_ab_11_2014!K10,0),0)","v":0},{"$f":"IF(AND(Mehrheitsrechner_Art_3_II_Prot!C10=\"n\",Mehrheitsrechner_Art_3_II_Prot!B10=\"x\"),1*Mehrheitsrechner_Art_3_II_Prot!F10,0)","v":0},{"$f":"IF(AND(Mehrheitsrechner_Art_238_II!B14=\"x\",Mehrheitsrechner_Art_238_II!C14=\"J\"),1,0)","v":1},{"$f":"IF(AND(Mehrheitsrechner_Art_238_II!B14=\"x\",Mehrheitsrechner_Art_238_II!C14=\"N\"),1,0)","v":0},{"$f":"IF(AND(Mehrheitsrechner_Art_238_II!C14=\"e\",Mehrheitsrechner_Art_238_II!B14=\"x\"),1,0)","v":0},{"$f":"IF(Mehrheitsrechner_ab_11_2014!L33<28, IF(AND(SUM(V11:V32)<1,'Technische Tabelle'!S10<1),Mehrheitsrechner_ab_11_2014!P10,0),0)","v":0},{"$f":"IF(AND(Mehrheitsrechner_Art_238_II!C14=\"n\",Mehrheitsrechner_Art_238_II!B14=\"x\"),1*Mehrheitsrechner_Art_238_II!D14,0)","v":0}]
["Rumänien",{"$f":"IF(Mehrheitsrechner_ab_11_2014!C11=\"n\",1,0)","v":0},{"$f":"IF(Mehrheitsrechner_ab_11_2014!C11=\"n\",1*Mehrheitsrechner_ab_11_2014!D11,0)","v":0},{"$f":"IF(Mehrheitsrechner_Art_238_II!B15=\"n\",1,0)","v":0},{"$f":"IF(Mehrheitsrechner_Art_238_II!B15=\"n\",1*Mehrheitsrechner_Art_238_II!C15,0)","v":0},{"$f":"IF(Mehrheitsrechner_Art_3_II_Prot!C11=\"n\",1,0)","v":0},{"$f":"IF(Mehrheitsrechner_Art_3_II_Prot!C11=\"n\",1*Mehrheitsrechner_Art_3_II_Prot!F11,0)","v":0},null,{"$f":"IF(AND(Mehrheitsrechner_ab_11_2014!C11=\"J\",Mehrheitsrechner_ab_11_2014!B11=\"x\"),1,0)","v":1},{"$f":"IF(AND(Mehrheitsrechner_ab_11_2014!C11=\"N\",Mehrheitsrechner_ab_11_2014!B11=\"x\"),1,0)","v":0},{"$f":"IF(AND(Mehrheitsrechner_ab_11_2014!C11=\"e\",Mehrheitsrechner_ab_11_2014!B11=\"x\"),1,0)","v":0},{"$f":"IF(Mehrheitsrechner_ab_11_2014!B33<28, IF(AND(SUM(L12:L32)<1,'Technische Tabelle'!I11<1),Mehrheitsrechner_ab_11_2014!F11,0),0)","v":0},{"$f":"IF(AND(Mehrheitsrechner_ab_11_2014!C11=\"n\",Mehrheitsrechner_ab_11_2014!B11=\"x\"),1*Mehrheitsrechner_ab_11_2014!D11,0)","v":0},{"$f":"IF(AND(Mehrheitsrechner_Art_3_II_Prot!B11=\"x\",Mehrheitsrechner_Art_3_II_Prot!C11=\"J\"),1,0)","v":1},{"$f":"IF(AND(Mehrheitsrechner_Art_3_II_Prot!B11=\"x\",Mehrheitsrechner_Art_3_II_Prot!C11=\"N\"),1,0)","v":0},{"$f":"IF(AND(Mehrheitsrechner_ab_11_2014!H11=\"e\",Mehrheitsrechner_ab_11_2014!G11=\"x\"),1,0)","v":0},{"$f":"IF(Mehrheitsrechner_ab_11_2014!G33<28, IF(AND(SUM(Q12:Q32)<1,'Technische Tabelle'!N11<1),Mehrheitsrechner_ab_11_2014!K11,0),0)","v":0},{"$f":"IF(AND(Mehrheitsrechner_Art_3_II_Prot!C11=\"n\",Mehrheitsrechner_Art_3_II_Prot!B11=\"x\"),1*Mehrheitsrechner_Art_3_II_Prot!F11,0)","v":0},{"$f":"IF(AND(Mehrheitsrechner_Art_238_II!B15=\"x\",Mehrheitsrechner_Art_238_II!C15=\"J\"),1,0)","v":1},{"$f":"IF(AND(Mehrheitsrechner_Art_238_II!B15=\"x\",Mehrheitsrechner_Art_238_II!C15=\"N\"),1,0)","v":0},{"$f":"IF(AND(Mehrheitsrechner_Art_238_II!C15=\"e\",Mehrheitsrechner_Art_238_II!B15=\"x\"),1,0)","v":0},{"$f":"IF(Mehrheitsrechner_ab_11_2014!L33<28, IF(AND(SUM(V12:V32)<1,'Technische Tabelle'!S11<1),Mehrheitsrechner_ab_11_2014!P11,0),0)","v":0},{"$f":"IF(AND(Mehrheitsrechner_Art_238_II!C15=\"n\",Mehrheitsrechner_Art_238_II!B15=\"x\"),1*Mehrheitsrechner_Art_238_II!D15,0)","v":0}]
["Niederlande",{"$f":"IF(Mehrheitsrechner_ab_11_2014!C12=\"n\",1,0)","v":0},{"$f":"IF(Mehrheitsrechner_ab_11_2014!C12=\"n\",1*Mehrheitsrechner_ab_11_2014!D12,0)","v":0},{"$f":"IF(Mehrheitsrechner_Art_238_II!B16=\"n\",1,0)","v":0},{"$f":"IF(Mehrheitsrechner_Art_238_II!B16=\"n\",1*Mehrheitsrechner_Art_238_II!C16,0)","v":0},{"$f":"IF(Mehrheitsrechner_Art_3_II_Prot!C12=\"n\",1,0)","v":0},{"$f":"IF(Mehrheitsrechner_Art_3_II_Prot!C12=\"n\",1*Mehrheitsrechner_Art_3_II_Prot!F12,0)","v":0},null,{"$f":"IF(AND(Mehrheitsrechner_ab_11_2014!C12=\"J\",Mehrheitsrechner_ab_11_2014!B12=\"x\"),1,0)","v":1},{"$f":"IF(AND(Mehrheitsrechner_ab_11_2014!C12=\"N\",Mehrheitsrechner_ab_11_2014!B12=\"x\"),1,0)","v":0},{"$f":"IF(AND(Mehrheitsrechner_ab_11_2014!C12=\"e\",Mehrheitsrechner_ab_11_2014!B12=\"x\"),1,0)","v":0},{"$f":"IF(Mehrheitsrechner_ab_11_2014!B33<28, IF(AND(SUM(L13:L32)<1,'Technische Tabelle'!I12<1),Mehrheitsrechner_ab_11_2014!F12,0),0)","v":0},{"$f":"IF(AND(Mehrheitsrechner_ab_11_2014!C12=\"n\",Mehrheitsrechner_ab_11_2014!B12=\"x\"),1*Mehrheitsrechner_ab_11_2014!D12,0)","v":0},{"$f":"IF(AND(Mehrheitsrechner_Art_3_II_Prot!B12=\"x\",Mehrheitsrechner_Art_3_II_Prot!C12=\"J\"),1,0)","v":1},{"$f":"IF(AND(Mehrheitsrechner_Art_3_II_Prot!B12=\"x\",Mehrheitsrechner_Art_3_II_Prot!C12=\"N\"),1,0)","v":0},{"$f":"IF(AND(Mehrheitsrechner_ab_11_2014!H12=\"e\",Mehrheitsrechner_ab_11_2014!G12=\"x\"),1,0)","v":0},{"$f":"IF(Mehrheitsrechner_ab_11_2014!G33<28, IF(AND(SUM(Q13:Q32)<1,'Technische Tabelle'!N12<1),Mehrheitsrechner_ab_11_2014!K12,0),0)","v":0},{"$f":"IF(AND(Mehrheitsrechner_Art_3_II_Prot!C12=\"n\",Mehrheitsrechner_Art_3_II_Prot!B12=\"x\"),1*Mehrheitsrechner_Art_3_II_Prot!F12,0)","v":0},{"$f":"IF(AND(Mehrheitsrechner_Art_238_II!B16=\"x\",Mehrheitsrechner_Art_238_II!C16=\"J\"),1,0)","v":1},{"$f":"IF(AND(Mehrheitsrechner_Art_238_II!B16=\"x\",Mehrheitsrechner_Art_238_II!C16=\"N\"),1,0)","v":0},{"$f":"IF(AND(Mehrheitsrechner_Art_238_II!C16=\"e\",Mehrheitsrechner_Art_238_II!B16=\"x\"),1,0)","v":0},{"$f":"IF(Mehrheitsrechner_ab_11_2014!L33<28, IF(AND(SUM(V13:V32)<1,'Technische Tabelle'!S12<1),Mehrheitsrechner_ab_11_2014!P12,0),0)","v":0},{"$f":"IF(AND(Mehrheitsrechner_Art_238_II!C16=\"n\",Mehrheitsrechner_Art_238_II!B16=\"x\"),1*Mehrheitsrechner_Art_238_II!D16,0)","v":0}]
["Griechenland",{"$f":"IF(Mehrheitsrechner_ab_11_2014!C13=\"n\",1,0)","v":0},{"$f":"IF(Mehrheitsrechner_ab_11_2014!C13=\"n\",1*Mehrheitsrechner_ab_11_2014!D13,0)","v":0},{"$f":"IF(Mehrheitsrechner_Art_238_II!B17=\"n\",1,0)","v":0},{"$f":"IF(Mehrheitsrechner_Art_238_II!B17=\"n\",1*Mehrheitsrechner_Art_238_II!C17,0)","v":0},{"$f":"IF(Mehrheitsrechner_Art_3_II_Prot!C13=\"n\",1,0)","v":0},{"$f":"IF(Mehrheitsrechner_Art_3_II_Prot!C13=\"n\",1*Mehrheitsrechner_Art_3_II_Prot!F13,0)","v":0},null,{"$f":"IF(AND(Mehrheitsrechner_ab_11_2014!C13=\"J\",Mehrheitsrechner_ab_11_2014!B13=\"x\"),1,0)","v":1},{"$f":"IF(AND(Mehrheitsrechner_ab_11_2014!C13=\"N\",Mehrheitsrechner_ab_11_2014!B13=\"x\"),1,0)","v":0},{"$f":"IF(AND(Mehrheitsrechner_ab_11_2014!C13=\"e\",Mehrheitsrechner_ab_11_2014!B13=\"x\"),1,0)","v":0},{"$f":"IF(Mehrheitsrechner_ab_11_2014!B33<28, IF(AND(SUM(L14:L32)<1,'Technische Tabelle'!I13<1),Mehrheitsrechner_ab_11_2014!F13,0),0)","v":0},{"$f":"IF(AND(Mehrheitsrechner_ab_11_2014!C13=\"n\",Mehrheitsrechner_ab_11_2014!B13=\"x\"),1*Mehrheitsrechner_ab_11_2014!D13,0)","v":0},{"$f":"IF(AND(Mehrheitsrechner_Art_3_II_Prot!B13=\"x\",Mehrheitsrechner_Art_3_II_Prot!C13=\"J\"),1,0)","v":1},{"$f":"IF(AND(Mehrheitsrechner_Art_3_II_Prot!B13=\"x\",Mehrheitsrechner_Art_3_II_Prot!C13=\"N\"),1,0)","v":0},{"$f":"IF(AND(Mehrheitsrechner_ab_11_2014!H13=\"e\",Mehrheitsrechner_ab_11_2014!G13=\"x\"),1,0)","v":0},{"$f":"IF(Mehrheitsrechner_ab_11_2014!G33<28, IF(AND(SUM(Q14:Q32)<1,'Technische Tabelle'!N13<1),Mehrheitsrechner_ab_11_2014!K13,0),0)","v":0},{"$f":"IF(AND(Mehrheitsrechner_Art_3_II_Prot!C13=\"n\",Mehrheitsrechner_Art_3_II_Prot!B13=\"x\"),1*Mehrheitsrechner_Art_3_II_Prot!F13,0)","v":0},{"$f":"IF(AND(Mehrheitsrechner_Art_238_II!B17=\"x\",Mehrheitsrechner_Art_238_II!C17=\"J\"),1,0)","v":1},{"$f":"IF(AND(Mehrheitsrechner_Art_238_II!B17=\"x\",Mehrheitsrechner_Art_238_II!C17=\"N\"),1,0)","v":0},{"$f":"IF(AND(Mehrheitsrechner_Art_238_II!C17=\"e\",Mehrheitsrechner_Art_238_II!B17=\"x\"),1,0)","v":0},{"$f":"IF(Mehrheitsrechner_ab_11_2014!L33<28, IF(AND(SUM(V14:V32)<1,'Technische Tabelle'!S13<1),Mehrheitsrechner_ab_11_2014!P13,0),0)","v":0},{"$f":"IF(AND(Mehrheitsrechner_Art_238_II!C17=\"n\",Mehrheitsrechner_Art_238_II!B17=\"x\"),1*Mehrheitsrechner_Art_238_II!D17,0)","v":0}]
["Belgien",{"$f":"IF(Mehrheitsrechner_ab_11_2014!C14=\"n\",1,0)","v":0},{"$f":"IF(Mehrheitsrechner_ab_11_2014!C14=\"n\",1*Mehrheitsrechner_ab_11_2014!D14,0)","v":0},{"$f":"IF(Mehrheitsrechner_Art_238_II!B18=\"n\",1,0)","v":0},{"$f":"IF(Mehrheitsrechner_Art_238_II!B18=\"n\",1*Mehrheitsrechner_Art_238_II!C18,0)","v":0},{"$f":"IF(Mehrheitsrechner_Art_3_II_Prot!C14=\"n\",1,0)","v":0},{"$f":"IF(Mehrheitsrechner_Art_3_II_Prot!C14=\"n\",1*Mehrheitsrechner_Art_3_II_Prot!F14,0)","v":0},null,{"$f":"IF(AND(Mehrheitsrechner_ab_11_2014!C14=\"J\",Mehrheitsrechner_ab_11_2014!B14=\"x\"),1,0)","v":1},{"$f":"IF(AND(Mehrheitsrechner_ab_11_2014!C14=\"N\",Mehrheitsrechner_ab_11_2014!B14=\"x\"),1,0)","v":0},{"$f":"IF(AND(Mehrheitsrechner_ab_11_2014!C14=\"e\",Mehrheitsrechner_ab_11_2014!B14=\"x\"),1,0)","v":0},{"$f":"IF(Mehrheitsrechner_ab_11_2014!B33<28, IF(AND(SUM(L15:L32)<1,'Technische Tabelle'!I14<1),Mehrheitsrechner_ab_11_2014!F14,0),0)","v":0},{"$f":"IF(AND(Mehrheitsrechner_ab_11_2014!C14=\"n\",Mehrheitsrechner_ab_11_2014!B14=\"x\"),1*Mehrheitsrechner_ab_11_2014!D14,0)","v":0},{"$f":"IF(AND(Mehrheitsrechner_Art_3_II_Prot!B14=\"x\",Mehrheitsrechner_Art_3_II_Prot!C14=\"J\"),1,0)","v":1},{"$f":"IF(AND(Mehrheitsrechner_Art_3_II_Prot!B14=\"x\",Mehrheitsrechner_Art_3_II_Prot!C14=\"N\"),1,0)","v":0},{"$f":"IF(AND(Mehrheitsrechner_ab_11_2014!H14=\"e\",Mehrheitsrechner_ab_11_2014!G14=\"x\"),1,0)","v":0},{"$f":"IF(Mehrheitsrechner_ab_11_2014!G33<28, IF(AND(SUM(Q15:Q32)<1,'Technische Tabelle'!N14<1),Mehrheitsrechner_ab_11_2014!K14,0),0)","v":0},{"$f":"IF(AND(Mehrheitsrechner_Art_3_II_Prot!C14=\"n\",Mehrheitsrechner_Art_3_II_Prot!B14=\"x\"),1*Mehrheitsrechner_Art_3_II_Prot!F14,0)","v":0},{"$f":"IF(AND(Mehrheitsrechner_Art_238_II!B18=\"x\",Mehrheitsrechner_Art_238_II!C18=\"J\"),1,0)","v":1},{"$f":"IF(AND(Mehrheitsrechner_Art_238_II!B18=\"x\",Mehrheitsrechner_Art_238_II!C18=\"N\"),1,0)","v":0},{"$f":"IF(AND(Mehrheitsrechner_Art_238_II!C18=\"e\",Mehrheitsrechner_Art_238_II!B18=\"x\"),1,0)","v":0},{"$f":"IF(Mehrheitsrechner_ab_11_2014!L33<28, IF(AND(SUM(V15:V32)<1,'Technische Tabelle'!S14<1),Mehrheitsrechner_ab_11_2014!P14,0),0)","v":0},{"$f":"IF(AND(Mehrheitsrechner_Art_238_II!C18=\"n\",Mehrheitsrechner_Art_238_II!B18=\"x\"),1*Mehrheitsrechner_Art_238_II!D18,0)","v":0}]
["Portugal",{"$f":"IF(Mehrheitsrechner_ab_11_2014!C15=\"n\",1,0)","v":0},{"$f":"IF(Mehrheitsrechner_ab_11_2014!C15=\"n\",1*Mehrheitsrechner_ab_11_2014!D15,0)","v":0},{"$f":"IF(Mehrheitsrechner_Art_238_II!B19=\"n\",1,0)","v":0},{"$f":"IF(Mehrheitsrechner_Art_238_II!B19=\"n\",1*Mehrheitsrechner_Art_238_II!C19,0)","v":0},{"$f":"IF(Mehrheitsrechner_Art_3_II_Prot!C15=\"n\",1,0)","v":0},{"$f":"IF(Mehrheitsrechner_Art_3_II_Prot!C15=\"n\",1*Mehrheitsrechner_Art_3_II_Prot!F15,0)","v":0},null,{"$f":"IF(AND(Mehrheitsrechner_ab_11_2014!C15=\"J\",Mehrheitsrechner_ab_11_2014!B15=\"x\"),1,0)","v":1},{"$f":"IF(AND(Mehrheitsrechner_ab_11_2014!C15=\"N\",Mehrheitsrechner_ab_11_2014!B15=\"x\"),1,0)","v":0},{"$f":"IF(AND(Mehrheitsrechner_ab_11_2014!C15=\"e\",Mehrheitsrechner_ab_11_2014!B15=\"x\"),1,0)","v":0},{"$f":"IF(Mehrheitsrechner_ab_11_2014!B33<28, IF(AND(SUM(L16:L32)<1,'Technische Tabelle'!I15<1),Mehrheitsrechner_ab_11_2014!F15,0),0)","v":0},{"$f":"IF(AND(Mehrheitsrechner_ab_11_2014!C15=\"n\",Mehrheitsrechner_ab_11_2014!B15=\"x\"),1*Mehrheitsrechner_ab_11_2014!D15,0)","v":0},{"$f":"IF(AND(Mehrheitsrechner_Art_3_II_Prot!B15=\"x\",Mehrheitsrechner_Art_3_II_Prot!C15=\"J\"),1,0)","v":1},{"$f":"IF(AND(Mehrheitsrechner_Art_3_II_Prot!B15=\"x\",Mehrheitsrechner_Art_3_II_Prot!C15=\"N\"),1,0)","v":0},{"$f":"IF(AND(Mehrheitsrechner_ab_11_2014!H15=\"e\",Mehrheitsrechner_ab_11_2014!G15=\"x\"),1,0)","v":0},{"$f":"IF(Mehrheitsrechner_ab_11_2014!G33<28, IF(AND(SUM(Q16:Q32)<1,'Technische Tabelle'!N15<1),Mehrheitsrechner_ab_11_2014!K15,0),0)","v":0},{"$f":"IF(AND(Mehrheitsrechner_Art_3_II_Prot!C15=\"n\",Mehrheitsrechner_Art_3_II_Prot!B15=\"x\"),1*Mehrheitsrechner_Art_3_II_Prot!F15,0)","v":0},{"$f":"IF(AND(Mehrheitsrechner_Art_238_II!B19=\"x\",Mehrheitsrechner_Art_238_II!C19=\"J\"),1,0)","v":1},{"$f":"IF(AND(Mehrheitsrechner_Art_238_II!B19=\"x\",Mehrheitsrechner_Art_238_II!C19=\"N\"),1,0)","v":0},{"$f":"IF(AND(Mehrheitsrechner_Art_238_II!C19=\"e\",Mehrheitsrechner_Art_238_II!B19=\"x\"),1,0)","v":0},{"$f":"IF(Mehrheitsrechner_ab_11_2014!L33<28, IF(AND(SUM(V16:V32)<1,'Technische Tabelle'!S15<1),Mehrheitsrechner_ab_11_2014!P15,0),0)","v":0},{"$f":"IF(AND(Mehrheitsrechner_Art_238_II!C19=\"n\",Mehrheitsrechner_Art_238_II!B19=\"x\"),1*Mehrheitsrechner_Art_238_II!D19,0)","v":0}]
["Tschechische Republik",{"$f":"IF(Mehrheitsrechner_ab_11_2014!C16=\"n\",1,0)","v":0},{"$f":"IF(Mehrheitsrechner_ab_11_2014!C16=\"n\",1*Mehrheitsrechner_ab_11_2014!D16,0)","v":0},{"$f":"IF(Mehrheitsrechner_Art_238_II!B20=\"n\",1,0)","v":0},{"$f":"IF(Mehrheitsrechner_Art_238_II!B20=\"n\",1*Mehrheitsrechner_Art_238_II!C20,0)","v":0},{"$f":"IF(Mehrheitsrechner_Art_3_II_Prot!C16=\"n\",1,0)","v":0},{"$f":"IF(Mehrheitsrechner_Art_3_II_Prot!C16=\"n\",1*Mehrheitsrechner_Art_3_II_Prot!F16,0)","v":0},null,{"$f":"IF(AND(Mehrheitsrechner_ab_11_2014!C16=\"J\",Mehrheitsrechner_ab_11_2014!B16=\"x\"),1,0)","v":1},{"$f":"IF(AND(Mehrheitsrechner_ab_11_2014!C16=\"N\",Mehrheitsrechner_ab_11_2014!B16=\"x\"),1,0)","v":0},{"$f":"IF(AND(Mehrheitsrechner_ab_11_2014!C16=\"e\",Mehrheitsrechner_ab_11_2014!B16=\"x\"),1,0)","v":0},{"$f":"IF(Mehrheitsrechner_ab_11_2014!B33<28, IF(AND(SUM(L17:L32)<1,'Technische Tabelle'!I16<1),Mehrheitsrechner_ab_11_2014!F16,0),0)","v":0},{"$f":"IF(AND(Mehrheitsrechner_ab_11_2014!C16=\"n\",Mehrheitsrechner_ab_11_2014!B16=\"x\"),1*Mehrheitsrechner_ab_11_2014!D16,0)","v":0},{"$f":"IF(AND(Mehrheitsrechner_Art_3_II_Prot!B16=\"x\",Mehrheitsrechner_Art_3_II_Prot!C16=\"J\"),1,0)","v":1},{"$f":"IF(AND(Mehrheitsrechner_Art_3_II_Prot!B16=\"x\",Mehrheitsrechner_Art_3_II_Prot!C16=\"N\"),1,0)","v":0},{"$f":"IF(AND(Mehrheitsrechner_ab_11_2014!H16=\"e\",Mehrheitsrechner_ab_11_2014!G16=\"x\"),1,0)","v":0},{"$f":"IF(Mehrheitsrechner_ab_11_2014!G33<28, IF(AND(SUM(Q17:Q32)<1,'Technische Tabelle'!N16<1),Mehrheitsrechner_ab_11_2014!K16,0),0)","v":0},{"$f":"IF(AND(Mehrheitsrechner_Art_3_II_Prot!C16=\"n\",Mehrheitsrechner_Art_3_II_Prot!B16=\"x\"),1*Mehrheitsrechner_Art_3_II_Prot!F16,0)","v":0},{"$f":"IF(AND(Mehrheitsrechner_Art_238_II!B20=\"x\",Mehrheitsrechner_Art_238_II!C20=\"J\"),1,0)","v":1},{"$f":"IF(AND(Mehrheitsrechner_Art_238_II!B20=\"x\",Mehrheitsrechner_Art_238_II!C20=\"N\"),1,0)","v":0},{"$f":"IF(AND(Mehrheitsrechner_Art_238_II!C20=\"e\",Mehrheitsrechner_Art_238_II!B20=\"x\"),1,0)","v":0},{"$f":"IF(Mehrheitsrechner_ab_11_2014!L33<28, IF(AND(SUM(V17:V32)<1,'Technische Tabelle'!S16<1),Mehrheitsrechner_ab_11_2014!P16,0),0)","v":0},{"$f":"IF(AND(Mehrheitsrechner_Art_238_II!C20=\"n\",Mehrheitsrechner_Art_238_II!B20=\"x\"),1*Mehrheitsrechner_Art_238_II!D20,0)","v":0}]
["Ungarn",{"$f":"IF(Mehrheitsrechner_ab_11_2014!C17=\"n\",1,0)","v":0},{"$f":"IF(Mehrheitsrechner_ab_11_2014!C17=\"n\",1*Mehrheitsrechner_ab_11_2014!D17,0)","v":0},{"$f":"IF(Mehrheitsrechner_Art_238_II!B21=\"n\",1,0)","v":0},{"$f":"IF(Mehrheitsrechner_Art_238_II!B21=\"n\",1*Mehrheitsrechner_Art_238_II!C21,0)","v":0},{"$f":"IF(Mehrheitsrechner_Art_3_II_Prot!C17=\"n\",1,0)","v":0},{"$f":"IF(Mehrheitsrechner_Art_3_II_Prot!C17=\"n\",1*Mehrheitsrechner_Art_3_II_Prot!F17,0)","v":0},null,{"$f":"IF(AND(Mehrheitsrechner_ab_11_2014!C17=\"J\",Mehrheitsrechner_ab_11_2014!B17=\"x\"),1,0)","v":1},{"$f":"IF(AND(Mehrheitsrechner_ab_11_2014!C17=\"N\",Mehrheitsrechner_ab_11_2014!B17=\"x\"),1,0)","v":0},{"$f":"IF(AND(Mehrheitsrechner_ab_11_2014!C17=\"e\",Mehrheitsrechner_ab_11_2014!B17=\"x\"),1,0)","v":0},{"$f":"IF(Mehrheitsrechner_ab_11_2014!B33<28, IF(AND(SUM(L18:L32)<1,'Technische Tabelle'!I17<1),Mehrheitsrechner_ab_11_2014!F17,0),0)","v":0},{"$f":"IF(AND(Mehrheitsrechner_ab_11_2014!C17=\"n\",Mehrheitsrechner_ab_11_2014!B17=\"x\"),1*Mehrheitsrechner_ab_11_2014!D17,0)","v":0},{"$f":"IF(AND(Mehrheitsrechner_Art_3_II_Prot!B17=\"x\",Mehrheitsrechner_Art_3_II_Prot!C17=\"J\"),1,0)","v":1},{"$f":"IF(AND(Mehrheitsrechner_Art_3_II_Prot!B17=\"x\",Mehrheitsrechner_Art_3_II_Prot!C17=\"N\"),1,0)","v":0},{"$f":"IF(AND(Mehrheitsrechner_ab_11_2014!H17=\"e\",Mehrheitsrechner_ab_11_2014!G17=\"x\"),1,0)","v":0},{"$f":"IF(Mehrheitsrechner_ab_11_2014!G33<28, IF(AND(SUM(Q18:Q32)<1,'Technische Tabelle'!N17<1),Mehrheitsrechner_ab_11_2014!K17,0),0)","v":0},{"$f":"IF(AND(Mehrheitsrechner_Art_3_II_Prot!C17=\"n\",Mehrheitsrechner_Art_3_II_Prot!B17=\"x\"),1*Mehrheitsrechner_Art_3_II_Prot!F17,0)","v":0},{"$f":"IF(AND(Mehrheitsrechner_Art_238_II!B21=\"x\",Mehrheitsrechner_Art_238_II!C21=\"J\"),1,0)","v":1},{"$f":"IF(AND(Mehrheitsrechner_Art_238_II!B21=\"x\",Mehrheitsrechner_Art_238_II!C21=\"N\"),1,0)","v":0},{"$f":"IF(AND(Mehrheitsrechner_Art_238_II!C21=\"e\",Mehrheitsrechner_Art_238_II!B21=\"x\"),1,0)","v":0},{"$f":"IF(Mehrheitsrechner_ab_11_2014!L33<28, IF(AND(SUM(V18:V32)<1,'Technische Tabelle'!S17<1),Mehrheitsrechner_ab_11_2014!P17,0),0)","v":0},{"$f":"IF(AND(Mehrheitsrechner_Art_238_II!C21=\"n\",Mehrheitsrechner_Art_238_II!B21=\"x\"),1*Mehrheitsrechner_Art_238_II!D21,0)","v":0}]
["Schweden",{"$f":"IF(Mehrheitsrechner_ab_11_2014!C18=\"n\",1,0)","v":0},{"$f":"IF(Mehrheitsrechner_ab_11_2014!C18=\"n\",1*Mehrheitsrechner_ab_11_2014!D18,0)","v":0},{"$f":"IF(Mehrheitsrechner_Art_238_II!B22=\"n\",1,0)","v":0},{"$f":"IF(Mehrheitsrechner_Art_238_II!B22=\"n\",1*Mehrheitsrechner_Art_238_II!C22,0)","v":0},{"$f":"IF(Mehrheitsrechner_Art_3_II_Prot!C18=\"n\",1,0)","v":0},{"$f":"IF(Mehrheitsrechner_Art_3_II_Prot!C18=\"n\",1*Mehrheitsrechner_Art_3_II_Prot!F18,0)","v":0},null,{"$f":"IF(AND(Mehrheitsrechner_ab_11_2014!C18=\"J\",Mehrheitsrechner_ab_11_2014!B18=\"x\"),1,0)","v":1},{"$f":"IF(AND(Mehrheitsrechner_ab_11_2014!C18=\"N\",Mehrheitsrechner_ab_11_2014!B18=\"x\"),1,0)","v":0},{"$f":"IF(AND(Mehrheitsrechner_ab_11_2014!C18=\"e\",Mehrheitsrechner_ab_11_2014!B18=\"x\"),1,0)","v":0},{"$f":"IF(Mehrheitsrechner_ab_11_2014!B33<28, IF(AND(SUM(L19:L32)<1,'Technische Tabelle'!I18<1),Mehrheitsrechner_ab_11_2014!F18,0),0)","v":0},{"$f":"IF(AND(Mehrheitsrechner_ab_11_2014!C18=\"n\",Mehrheitsrechner_ab_11_2014!B18=\"x\"),1*Mehrheitsrechner_ab_11_2014!D18,0)","v":0},{"$f":"IF(AND(Mehrheitsrechner_Art_3_II_Prot!B18=\"x\",Mehrheitsrechner_Art_3_II_Prot!C18=\"J\"),1,0)","v":1},{"$f":"IF(AND(Mehrheitsrechner_Art_3_II_Prot!B18=\"x\",Mehrheitsrechner_Art_3_II_Prot!C18=\"N\"),1,0)","v":0},{"$f":"IF(AND(Mehrheitsrechner_ab_11_2014!H18=\"e\",Mehrheitsrechner_ab_11_2014!G18=\"x\"),1,0)","v":0},{"$f":"IF(Mehrheitsrechner_ab_11_2014!G33<28, IF(AND(SUM(Q19:Q32)<1,'Technische Tabelle'!N18<1),Mehrheitsrechner_ab_11_2014!K18,0),0)","v":0},{"$f":"IF(AND(Mehrheitsrechner_Art_3_II_Prot!C18=\"n\",Mehrheitsrechner_Art_3_II_Prot!B18=\"x\"),1*Mehrheitsrechner_Art_3_II_Prot!F18,0)","v":0},{"$f":"IF(AND(Mehrheitsrechner_Art_238_II!B22=\"x\",Mehrheitsrechner_Art_238_II!C22=\"J\"),1,0)","v":1},{"$f":"IF(AND(Mehrheitsrechner_Art_238_II!B22=\"x\",Mehrheitsrechner_Art_238_II!C22=\"N\"),1,0)","v":0},{"$f":"IF(AND(Mehrheitsrechner_Art_238_II!C22=\"e\",Mehrheitsrechner_Art_238_II!B22=\"x\"),1,0)","v":0},{"$f":"IF(Mehrheitsrechner_ab_11_2014!L33<28, IF(AND(SUM(V19:V32)<1,'Technische Tabelle'!S18<1),Mehrheitsrechner_ab_11_2014!P18,0),0)","v":0},{"$f":"IF(AND(Mehrheitsrechner_Art_238_II!C22=\"n\",Mehrheitsrechner_Art_238_II!B22=\"x\"),1*Mehrheitsrechner_Art_238_II!D22,0)","v":0}]
["Österreich",{"$f":"IF(Mehrheitsrechner_ab_11_2014!C19=\"n\",1,0)","v":0},{"$f":"IF(Mehrheitsrechner_ab_11_2014!C19=\"n\",1*Mehrheitsrechner_ab_11_2014!D19,0)","v":0},{"$f":"IF(Mehrheitsrechner_Art_238_II!B23=\"n\",1,0)","v":0},{"$f":"IF(Mehrheitsrechner_Art_238_II!B23=\"n\",1*Mehrheitsrechner_Art_238_II!C23,0)","v":0},{"$f":"IF(Mehrheitsrechner_Art_3_II_Prot!C19=\"n\",1,0)","v":0},{"$f":"IF(Mehrheitsrechner_Art_3_II_Prot!C19=\"n\",1*Mehrheitsrechner_Art_3_II_Prot!F19,0)","v":0},null,{"$f":"IF(AND(Mehrheitsrechner_ab_11_2014!C19=\"J\",Mehrheitsrechner_ab_11_2014!B19=\"x\"),1,0)","v":1},{"$f":"IF(AND(Mehrheitsrechner_ab_11_2014!C19=\"N\",Mehrheitsrechner_ab_11_2014!B19=\"x\"),1,0)","v":0},{"$f":"IF(AND(Mehrheitsrechner_ab_11_2014!C19=\"e\",Mehrheitsrechner_ab_11_2014!B19=\"x\"),1,0)","v":0},{"$f":"IF(Mehrheitsrechner_ab_11_2014!B33<28, IF(AND(SUM(L20:L32)<1,'Technische Tabelle'!I19<1),Mehrheitsrechner_ab_11_2014!F19,0),0)","v":0},{"$f":"IF(AND(Mehrheitsrechner_ab_11_2014!C19=\"n\",Mehrheitsrechner_ab_11_2014!B19=\"x\"),1*Mehrheitsrechner_ab_11_2014!D19,0)","v":0},{"$f":"IF(AND(Mehrheitsrechner_Art_3_II_Prot!B19=\"x\",Mehrheitsrechner_Art_3_II_Prot!C19=\"J\"),1,0)","v":1},{"$f":"IF(AND(Mehrheitsrechner_Art_3_II_Prot!B19=\"x\",Mehrheitsrechner_Art_3_II_Prot!C19=\"N\"),1,0)","v":0},{"$f":"IF(AND(Mehrheitsrechner_ab_11_2014!H19=\"e\",Mehrheitsrechner_ab_11_2014!G19=\"x\"),1,0)","v":0},{"$f":"IF(Mehrheitsrechner_ab_11_2014!G33<28, IF(AND(SUM(Q20:Q32)<1,'Technische Tabelle'!N19<1),Mehrheitsrechner_ab_11_2014!K19,0),0)","v":0},{"$f":"IF(AND(Mehrheitsrechner_Art_3_II_Prot!C19=\"n\",Mehrheitsrechner_Art_3_II_Prot!B19=\"x\"),1*Mehrheitsrechner_Art_3_II_Prot!F19,0)","v":0},{"$f":"IF(AND(Mehrheitsrechner_Art_238_II!B23=\"x\",Mehrheitsrechner_Art_238_II!C23=\"J\"),1,0)","v":1},{"$f":"IF(AND(Mehrheitsrechner_Art_238_II!B23=\"x\",Mehrheitsrechner_Art_238_II!C23=\"N\"),1,0)","v":0},{"$f":"IF(AND(Mehrheitsrechner_Art_238_II!C23=\"e\",Mehrheitsrechner_Art_238_II!B23=\"x\"),1,0)","v":0},{"$f":"IF(Mehrheitsrechner_ab_11_2014!L33<28, IF(AND(SUM(V20:V32)<1,'Technische Tabelle'!S19<1),Mehrheitsrechner_ab_11_2014!P19,0),0)","v":0},{"$f":"IF(AND(Mehrheitsrechner_Art_238_II!C23=\"n\",Mehrheitsrechner_Art_238_II!B23=\"x\"),1*Mehrheitsrechner_Art_238_II!D23,0)","v":0}]
["Bulgarien",{"$f":"IF(Mehrheitsrechner_ab_11_2014!C20=\"n\",1,0)","v":0},{"$f":"IF(Mehrheitsrechner_ab_11_2014!C20=\"n\",1*Mehrheitsrechner_ab_11_2014!D20,0)","v":0},{"$f":"IF(Mehrheitsrechner_Art_238_II!B24=\"n\",1,0)","v":0},{"$f":"IF(Mehrheitsrechner_Art_238_II!B24=\"n\",1*Mehrheitsrechner_Art_238_II!C24,0)","v":0},{"$f":"IF(Mehrheitsrechner_Art_3_II_Prot!C20=\"n\",1,0)","v":0},{"$f":"IF(Mehrheitsrechner_Art_3_II_Prot!C20=\"n\",1*Mehrheitsrechner_Art_3_II_Prot!F20,0)","v":0},null,{"$f":"IF(AND(Mehrheitsrechner_ab_11_2014!C20=\"J\",Mehrheitsrechner_ab_11_2014!B20=\"x\"),1,0)","v":1},{"$f":"IF(AND(Mehrheitsrechner_ab_11_2014!C20=\"N\",Mehrheitsrechner_ab_11_2014!B20=\"x\"),1,0)","v":0},{"$f":"IF(AND(Mehrheitsrechner_ab_11_2014!C20=\"e\",Mehrheitsrechner_ab_11_2014!B20=\"x\"),1,0)","v":0},{"$f":"IF(Mehrheitsrechner_ab_11_2014!B33<28, IF(AND(SUM(L21:L32)<1,'Technische Tabelle'!I20<1),Mehrheitsrechner_ab_11_2014!F20,0),0)","v":0},{"$f":"IF(AND(Mehrheitsrechner_ab_11_2014!C20=\"n\",Mehrheitsrechner_ab_11_2014!B20=\"x\"),1*Mehrheitsrechner_ab_11_2014!D20,0)","v":0},{"$f":"IF(AND(Mehrheitsrechner_Art_3_II_Prot!B20=\"x\",Mehrheitsrechner_Art_3_II_Prot!C20=\"J\"),1,0)","v":1},{"$f":"IF(AND(Mehrheitsrechner_Art_3_II_Prot!B20=\"x\",Mehrheitsrechner_Art_3_II_Prot!C20=\"N\"),1,0)","v":0},{"$f":"IF(AND(Mehrheitsrechner_ab_11_2014!H20=\"e\",Mehrheitsrechner_ab_11_2014!G20=\"x\"),1,0)","v":0},{"$f":"IF(Mehrheitsrechner_ab_11_2014!G33<28, IF(AND(SUM(Q21:Q32)<1,'Technische Tabelle'!N20<1),Mehrheitsrechner_ab_11_2014!K20,0),0)","v":0},{"$f":"IF(AND(Mehrheitsrechner_Art_3_II_Prot!C20=\"n\",Mehrheitsrechner_Art_3_II_Prot!B20=\"x\"),1*Mehrheitsrechner_Art_3_II_Prot!F20,0)","v":0},{"$f":"IF(AND(Mehrheitsrechner_Art_238_II!B24=\"x\",Mehrheitsrechner_Art_238_II!C24=\"J\"),1,0)","v":1},{"$f":"IF(AND(Mehrheitsrechner_Art_238_II!B24=\"x\",Mehrheitsrechner_Art_238_II!C24=\"N\"),1,0)","v":0},{"$f":"IF(AND(Mehrheitsrechner_Art_238_II!C24=\"e\",Mehrheitsrechner_Art_238_II!B24=\"x\"),1,0)","v":0},{"$f":"IF(Mehrheitsrechner_ab_11_2014!L33<28, IF(AND(SUM(V21:V32)<1,'Technische Tabelle'!S20<1),Mehrheitsrechner_ab_11_2014!P20,0),0)","v":0},{"$f":"IF(AND(Mehrheitsrechner_Art_238_II!C24=\"n\",Mehrheitsrechner_Art_238_II!B24=\"x\"),1*Mehrheitsrechner_Art_238_II!D24,0)","v":0}]
["Kroatien",{"$f":"IF(Mehrheitsrechner_ab_11_2014!C21=\"n\",1,0)","v":0},{"$f":"IF(Mehrheitsrechner_ab_11_2014!C21=\"n\",1*Mehrheitsrechner_ab_11_2014!D21,0)","v":0},{"$f":"IF(Mehrheitsrechner_Art_238_II!B25=\"n\",1,0)","v":0},{"$f":"IF(Mehrheitsrechner_Art_238_II!B25=\"n\",1*Mehrheitsrechner_Art_238_II!C25,0)","v":0},{"$f":"IF(Mehrheitsrechner_Art_3_II_Prot!C21=\"n\",1,0)","v":0},{"$f":"IF(Mehrheitsrechner_Art_3_II_Prot!C21=\"n\",1*Mehrheitsrechner_Art_3_II_Prot!F21,0)","v":0},null,{"$f":"IF(AND(Mehrheitsrechner_ab_11_2014!C21=\"J\",Mehrheitsrechner_ab_11_2014!B21=\"x\"),1,0)","v":1},{"$f":"IF(AND(Mehrheitsrechner_ab_11_2014!C21=\"N\",Mehrheitsrechner_ab_11_2014!B21=\"x\"),1,0)","v":0},{"$f":"IF(AND(Mehrheitsrechner_ab_11_2014!C21=\"e\",Mehrheitsrechner_ab_11_2014!B21=\"x\"),1,0)","v":0},{"$f":"IF(Mehrheitsrechner_ab_11_2014!B33<28, IF(AND(SUM(L22:L32)<1,'Technische Tabelle'!I21<1),Mehrheitsrechner_ab_11_2014!F21,0),0)","v":0},{"$f":"IF(AND(Mehrheitsrechner_ab_11_2014!C21=\"n\",Mehrheitsrechner_ab_11_2014!B21=\"x\"),1*Mehrheitsrechner_ab_11_2014!D21,0)","v":0},{"$f":"IF(AND(Mehrheitsrechner_Art_3_II_Prot!B21=\"x\",Mehrheitsrechner_Art_3_II_Prot!C21=\"J\"),1,0)","v":1},{"$f":"IF(AND(Mehrheitsrechner_Art_3_II_Prot!B21=\"x\",Mehrheitsrechner_Art_3_II_Prot!C21=\"N\"),1,0)","v":0},{"$f":"IF(AND(Mehrheitsrechner_ab_11_2014!H21=\"e\",Mehrheitsrechner_ab_11_2014!G21=\"x\"),1,0)","v":0},{"$f":"IF(Mehrheitsrechner_ab_11_2014!G33<28, IF(AND(SUM(Q22:Q32)<1,'Technische Tabelle'!N21<1),Mehrheitsrechner_ab_11_2014!K21,0),0)","v":0},{"$f":"IF(AND(Mehrheitsrechner_Art_3_II_Prot!C21=\"n\",Mehrheitsrechner_Art_3_II_Prot!B21=\"x\"),1*Mehrheitsrechner_Art_3_II_Prot!F21,0)","v":0},{"$f":"IF(AND(Mehrheitsrechner_Art_238_II!B25=\"x\",Mehrheitsrechner_Art_238_II!C25=\"J\"),1,0)","v":1},{"$f":"IF(AND(Mehrheitsrechner_Art_238_II!B25=\"x\",Mehrheitsrechner_Art_238_II!C25=\"N\"),1,0)","v":0},{"$f":"IF(AND(Mehrheitsrechner_Art_238_II!C25=\"e\",Mehrheitsrechner_Art_238_II!B25=\"x\"),1,0)","v":0},{"$f":"IF(Mehrheitsrechner_ab_11_2014!L33<28, IF(AND(SUM(V22:V32)<1,'Technische Tabelle'!S21<1),Mehrheitsrechner_ab_11_2014!P21,0),0)","v":0},{"$f":"IF(AND(Mehrheitsrechner_Art_238_II!C25=\"n\",Mehrheitsrechner_Art_238_II!B25=\"x\"),1*Mehrheitsrechner_Art_238_II!D25,0)","v":0}]
["Dänemark",{"$f":"IF(Mehrheitsrechner_ab_11_2014!C22=\"n\",1,0)","v":0},{"$f":"IF(Mehrheitsrechner_ab_11_2014!C22=\"n\",1*Mehrheitsrechner_ab_11_2014!D22,0)","v":0},{"$f":"IF(Mehrheitsrechner_Art_238_II!B26=\"n\",1,0)","v":0},{"$f":"IF(Mehrheitsrechner_Art_238_II!B26=\"n\",1*Mehrheitsrechner_Art_238_II!C26,0)","v":0},{"$f":"IF(Mehrheitsrechner_Art_3_II_Prot!C22=\"n\",1,0)","v":0},{"$f":"IF(Mehrheitsrechner_Art_3_II_Prot!C22=\"n\",1*Mehrheitsrechner_Art_3_II_Prot!F22,0)","v":0},null,{"$f":"IF(AND(Mehrheitsrechner_ab_11_2014!C22=\"J\",Mehrheitsrechner_ab_11_2014!B22=\"x\"),1,0)","v":1},{"$f":"IF(AND(Mehrheitsrechner_ab_11_2014!C22=\"N\",Mehrheitsrechner_ab_11_2014!B22=\"x\"),1,0)","v":0},{"$f":"IF(AND(Mehrheitsrechner_ab_11_2014!C22=\"e\",Mehrheitsrechner_ab_11_2014!B22=\"x\"),1,0)","v":0},{"$f":"IF(Mehrheitsrechner_ab_11_2014!B33<28, IF(AND(SUM(L23:L32)<1,'Technische Tabelle'!I22<1),Mehrheitsrechner_ab_11_2014!F22,0),0)","v":0},{"$f":"IF(AND(Mehrheitsrechner_ab_11_2014!C22=\"n\",Mehrheitsrechner_ab_11_2014!B22=\"x\"),1*Mehrheitsrechner_ab_11_2014!D22,0)","v":0},{"$f":"IF(AND(Mehrheitsrechner_Art_3_II_Prot!B22=\"x\",Mehrheitsrechner_Art_3_II_Prot!C22=\"J\"),1,0)","v":1},{"$f":"IF(AND(Mehrheitsrechner_Art_3_II_Prot!B22=\"x\",Mehrheitsrechner_Art_3_II_Prot!C22=\"N\"),1,0)","v":0},{"$f":"IF(AND(Mehrheitsrechner_ab_11_2014!H22=\"e\",Mehrheitsrechner_ab_11_2014!G22=\"x\"),1,0)","v":0},{"$f":"IF(Mehrheitsrechner_ab_11_2014!G33<28, IF(AND(SUM(Q23:Q32)<1,'Technische Tabelle'!N22<1),Mehrheitsrechner_ab_11_2014!K22,0),0)","v":0},{"$f":"IF(AND(Mehrheitsrechner_Art_3_II_Prot!C22=\"n\",Mehrheitsrechner_Art_3_II_Prot!B22=\"x\"),1*Mehrheitsrechner_Art_3_II_Prot!F22,0)","v":0},{"$f":"IF(AND(Mehrheitsrechner_Art_238_II!B26=\"x\",Mehrheitsrechner_Art_238_II!C26=\"J\"),1,0)","v":1},{"$f":"IF(AND(Mehrheitsrechner_Art_238_II!B26=\"x\",Mehrheitsrechner_Art_238_II!C26=\"N\"),1,0)","v":0},{"$f":"IF(AND(Mehrheitsrechner_Art_238_II!C26=\"e\",Mehrheitsrechner_Art_238_II!B26=\"x\"),1,0)","v":0},{"$f":"IF(Mehrheitsrechner_ab_11_2014!L33<28, IF(AND(SUM(V23:V32)<1,'Technische Tabelle'!S22<1),Mehrheitsrechner_ab_11_2014!P22,0),0)","v":0},{"$f":"IF(AND(Mehrheitsrechner_Art_238_II!C26=\"n\",Mehrheitsrechner_Art_238_II!B26=\"x\"),1*Mehrheitsrechner_Art_238_II!D26,0)","v":0}]
["Slowakei",{"$f":"IF(Mehrheitsrechner_ab_11_2014!C23=\"n\",1,0)","v":0},{"$f":"IF(Mehrheitsrechner_ab_11_2014!C23=\"n\",1*Mehrheitsrechner_ab_11_2014!D23,0)","v":0},{"$f":"IF(Mehrheitsrechner_Art_238_II!B27=\"n\",1,0)","v":0},{"$f":"IF(Mehrheitsrechner_Art_238_II!B27=\"n\",1*Mehrheitsrechner_Art_238_II!C27,0)","v":0},{"$f":"IF(Mehrheitsrechner_Art_3_II_Prot!C23=\"n\",1,0)","v":0},{"$f":"IF(Mehrheitsrechner_Art_3_II_Prot!C23=\"n\",1*Mehrheitsrechner_Art_3_II_Prot!F23,0)","v":0},null,{"$f":"IF(AND(Mehrheitsrechner_ab_11_2014!C23=\"J\",Mehrheitsrechner_ab_11_2014!B23=\"x\"),1,0)","v":1},{"$f":"IF(AND(Mehrheitsrechner_ab_11_2014!C23=\"N\",Mehrheitsrechner_ab_11_2014!B23=\"x\"),1,0)","v":0},{"$f":"IF(AND(Mehrheitsrechner_ab_11_2014!C23=\"e\",Mehrheitsrechner_ab_11_2014!B23=\"x\"),1,0)","v":0},{"$f":"IF(Mehrheitsrechner_ab_11_2014!B33<28, IF(AND(SUM(L24:L32)<1,'Technische Tabelle'!I23<1),Mehrheitsrechner_ab_11_2014!F23,0),0)","v":0},{"$f":"IF(AND(Mehrheitsrechner_ab_11_2014!C23=\"n\",Mehrheitsrechner_ab_11_2014!B23=\"x\"),1*Mehrheitsrechner_ab_11_2014!D23,0)","v":0},{"$f":"IF(AND(Mehrheitsrechner_Art_3_II_Prot!B23=\"x\",Mehrheitsrechner_Art_3_II_Prot!C23=\"J\"),1,0)","v":1},{"$f":"IF(AND(Mehrheitsrechner_Art_3_II_Prot!B23=\"x\",Mehrheitsrechner_Art_3_II_Prot!C23=\"N\"),1,0)","v":0},{"$f":"IF(AND(Mehrheitsrechner_ab_11_2014!H23=\"e\",Mehrheitsrechner_ab_11_2014!G23=\"x\"),1,0)","v":0},{"$f":"IF(Mehrheitsrechner_ab_11_2014!G33<28, IF(AND(SUM(Q24:Q32)<1,'Technische Tabelle'!N23<1),Mehrheitsrechner_ab_11_2014!K23,0),0)","v":0},{"$f":"IF(AND(Mehrheitsrechner_Art_3_II_Prot!C23=\"n\",Mehrheitsrechner_Art_3_II_Prot!B23=\"x\"),1*Mehrheitsrechner_Art_3_II_Prot!F23,0)","v":0},{"$f":"IF(AND(Mehrheitsrechner_Art_238_II!B27=\"x\",Mehrheitsrechner_Art_238_II!C27=\"J\"),1,0)","v":1},{"$f":"IF(AND(Mehrheitsrechner_Art_238_II!B27=\"x\",Mehrheitsrechner_Art_238_II!C27=\"N\"),1,0)","v":0},{"$f":"IF(AND(Mehrheitsrechner_Art_238_II!C27=\"e\",Mehrheitsrechner_Art_238_II!B27=\"x\"),1,0)","v":0},{"$f":"IF(Mehrheitsrechner_ab_11_2014!L33<28, IF(AND(SUM(V24:V32)<1,'Technische Tabelle'!S23<1),Mehrheitsrechner_ab_11_2014!P23,0),0)","v":0},{"$f":"IF(AND(Mehrheitsrechner_Art_238_II!C27=\"n\",Mehrheitsrechner_Art_238_II!B27=\"x\"),1*Mehrheitsrechner_Art_238_II!D27,0)","v":0}]
["Finnland",{"$f":"IF(Mehrheitsrechner_ab_11_2014!C24=\"n\",1,0)","v":0},{"$f":"IF(Mehrheitsrechner_ab_11_2014!C24=\"n\",1*Mehrheitsrechner_ab_11_2014!D24,0)","v":0},{"$f":"IF(Mehrheitsrechner_Art_238_II!B28=\"n\",1,0)","v":0},{"$f":"IF(Mehrheitsrechner_Art_238_II!B28=\"n\",1*Mehrheitsrechner_Art_238_II!C28,0)","v":0},{"$f":"IF(Mehrheitsrechner_Art_3_II_Prot!C24=\"n\",1,0)","v":0},{"$f":"IF(Mehrheitsrechner_Art_3_II_Prot!C24=\"n\",1*Mehrheitsrechner_Art_3_II_Prot!F24,0)","v":0},null,{"$f":"IF(AND(Mehrheitsrechner_ab_11_2014!C24=\"J\",Mehrheitsrechner_ab_11_2014!B24=\"x\"),1,0)","v":1},{"$f":"IF(AND(Mehrheitsrechner_ab_11_2014!C24=\"N\",Mehrheitsrechner_ab_11_2014!B24=\"x\"),1,0)","v":0},{"$f":"IF(AND(Mehrheitsrechner_ab_11_2014!C24=\"e\",Mehrheitsrechner_ab_11_2014!B24=\"x\"),1,0)","v":0},{"$f":"IF(Mehrheitsrechner_ab_11_2014!B33<28, IF(AND(SUM(L25:L32)<1,'Technische Tabelle'!I24<1),Mehrheitsrechner_ab_11_2014!F24,0),0)","v":0},{"$f":"IF(AND(Mehrheitsrechner_ab_11_2014!C24=\"n\",Mehrheitsrechner_ab_11_2014!B24=\"x\"),1*Mehrheitsrechner_ab_11_2014!D24,0)","v":0},{"$f":"IF(AND(Mehrheitsrechner_Art_3_II_Prot!B24=\"x\",Mehrheitsrechner_Art_3_II_Prot!C24=\"J\"),1,0)","v":1},{"$f":"IF(AND(Mehrheitsrechner_Art_3_II_Prot!B24=\"x\",Mehrheitsrechner_Art_3_II_Prot!C24=\"N\"),1,0)","v":0},{"$f":"IF(AND(Mehrheitsrechner_ab_11_2014!H24=\"e\",Mehrheitsrechner_ab_11_2014!G24=\"x\"),1,0)","v":0},{"$f":"IF(Mehrheitsrechner_ab_11_2014!G33<28, IF(AND(SUM(Q25:Q32)<1,'Technische Tabelle'!N24<1),Mehrheitsrechner_ab_11_2014!K24,0),0)","v":0},{"$f":"IF(AND(Mehrheitsrechner_Art_3_II_Prot!C24=\"n\",Mehrheitsrechner_Art_3_II_Prot!B24=\"x\"),1*Mehrheitsrechner_Art_3_II_Prot!F24,0)","v":0},{"$f":"IF(AND(Mehrheitsrechner_Art_238_II!B28=\"x\",Mehrheitsrechner_Art_238_II!C28=\"J\"),1,0)","v":1},{"$f":"IF(AND(Mehrheitsrechner_Art_238_II!B28=\"x\",Mehrheitsrechner_Art_238_II!C28=\"N\"),1,0)","v":0},{"$f":"IF(AND(Mehrheitsrechner_Art_238_II!C28=\"e\",Mehrheitsrechner_Art_238_II!B28=\"x\"),1,0)","v":0},{"$f":"IF(Mehrheitsrechner_ab_11_2014!L33<28, IF(AND(SUM(V25:V32)<1,'Technische Tabelle'!S24<1),Mehrheitsrechner_ab_11_2014!P24,0),0)","v":0},{"$f":"IF(AND(Mehrheitsrechner_Art_238_II!C28=\"n\",Mehrheitsrechner_Art_238_II!B28=\"x\"),1*Mehrheitsrechner_Art_238_II!D28,0)","v":0}]
["Irland",{"$f":"IF(Mehrheitsrechner_ab_11_2014!C25=\"n\",1,0)","v":0},{"$f":"IF(Mehrheitsrechner_ab_11_2014!C25=\"n\",1*Mehrheitsrechner_ab_11_2014!D25,0)","v":0},{"$f":"IF(Mehrheitsrechner_Art_238_II!B29=\"n\",1,0)","v":0},{"$f":"IF(Mehrheitsrechner_Art_238_II!B29=\"n\",1*Mehrheitsrechner_Art_238_II!C29,0)","v":0},{"$f":"IF(Mehrheitsrechner_Art_3_II_Prot!C25=\"n\",1,0)","v":0},{"$f":"IF(Mehrheitsrechner_Art_3_II_Prot!C25=\"n\",1*Mehrheitsrechner_Art_3_II_Prot!F25,0)","v":0},null,{"$f":"IF(AND(Mehrheitsrechner_ab_11_2014!C25=\"J\",Mehrheitsrechner_ab_11_2014!B25=\"x\"),1,0)","v":1},{"$f":"IF(AND(Mehrheitsrechner_ab_11_2014!C25=\"N\",Mehrheitsrechner_ab_11_2014!B25=\"x\"),1,0)","v":0},{"$f":"IF(AND(Mehrheitsrechner_ab_11_2014!C25=\"e\",Mehrheitsrechner_ab_11_2014!B25=\"x\"),1,0)","v":0},{"$f":"IF(Mehrheitsrechner_ab_11_2014!B33<28, IF(AND(SUM(L26:L32)<1,'Technische Tabelle'!I25<1),Mehrheitsrechner_ab_11_2014!F25,0),0)","v":0},{"$f":"IF(AND(Mehrheitsrechner_ab_11_2014!C25=\"n\",Mehrheitsrechner_ab_11_2014!B25=\"x\"),1*Mehrheitsrechner_ab_11_2014!D25,0)","v":0},{"$f":"IF(AND(Mehrheitsrechner_Art_3_II_Prot!B25=\"x\",Mehrheitsrechner_Art_3_II_Prot!C25=\"J\"),1,0)","v":1},{"$f":"IF(AND(Mehrheitsrechner_Art_3_II_Prot!B25=\"x\",Mehrheitsrechner_Art_3_II_Prot!C25=\"N\"),1,0)","v":0},{"$f":"IF(AND(Mehrheitsrechner_ab_11_2014!H25=\"e\",Mehrheitsrechner_ab_11_2014!G25=\"x\"),1,0)","v":0},{"$f":"IF(Mehrheitsrechner_ab_11_2014!G33<28, IF(AND(SUM(Q26:Q32)<1,'Technische Tabelle'!N25<1),Mehrheitsrechner_ab_11_2014!K25,0),0)","v":0},{"$f":"IF(AND(Mehrheitsrechner_Art_3_II_Prot!C25=\"n\",Mehrheitsrechner_Art_3_II_Prot!B25=\"x\"),1*Mehrheitsrechner_Art_3_II_Prot!F25,0)","v":0},{"$f":"IF(AND(Mehrheitsrechner_Art_238_II!B29=\"x\",Mehrheitsrechner_Art_238_II!C29=\"J\"),1,0)","v":1},{"$f":"IF(AND(Mehrheitsrechner_Art_238_II!B29=\"x\",Mehrheitsrechner_Art_238_II!C29=\"N\"),1,0)","v":0},{"$f":"IF(AND(Mehrheitsrechner_Art_238_II!C29=\"e\",Mehrheitsrechner_Art_238_II!B29=\"x\"),1,0)","v":0},{"$f":"IF(Mehrheitsrechner_ab_11_2014!L33<28, IF(AND(SUM(V26:V32)<1,'Technische Tabelle'!S25<1),Mehrheitsrechner_ab_11_2014!P25,0),0)","v":0},{"$f":"IF(AND(Mehrheitsrechner_Art_238_II!C29=\"n\",Mehrheitsrechner_Art_238_II!B29=\"x\"),1*Mehrheitsrechner_Art_238_II!D29,0)","v":0}]
["Litauen",{"$f":"IF(Mehrheitsrechner_ab_11_2014!C26=\"n\",1,0)","v":0},{"$f":"IF(Mehrheitsrechner_ab_11_2014!C26=\"n\",1*Mehrheitsrechner_ab_11_2014!D26,0)","v":0},{"$f":"IF(Mehrheitsrechner_Art_238_II!B30=\"n\",1,0)","v":0},{"$f":"IF(Mehrheitsrechner_Art_238_II!B30=\"n\",1*Mehrheitsrechner_Art_238_II!C30,0)","v":0},{"$f":"IF(Mehrheitsrechner_Art_3_II_Prot!C26=\"n\",1,0)","v":0},{"$f":"IF(Mehrheitsrechner_Art_3_II_Prot!C26=\"n\",1*Mehrheitsrechner_Art_3_II_Prot!F26,0)","v":0},null,{"$f":"IF(AND(Mehrheitsrechner_ab_11_2014!C26=\"J\",Mehrheitsrechner_ab_11_2014!B26=\"x\"),1,0)","v":1},{"$f":"IF(AND(Mehrheitsrechner_ab_11_2014!C26=\"N\",Mehrheitsrechner_ab_11_2014!B26=\"x\"),1,0)","v":0},{"$f":"IF(AND(Mehrheitsrechner_ab_11_2014!C26=\"e\",Mehrheitsrechner_ab_11_2014!B26=\"x\"),1,0)","v":0},{"$f":"IF(Mehrheitsrechner_ab_11_2014!B33<28, IF(AND(SUM(L27:L32)<1,'Technische Tabelle'!I26<1),Mehrheitsrechner_ab_11_2014!F26,0),0)","v":0},{"$f":"IF(AND(Mehrheitsrechner_ab_11_2014!C26=\"n\",Mehrheitsrechner_ab_11_2014!B26=\"x\"),1*Mehrheitsrechner_ab_11_2014!D26,0)","v":0},{"$f":"IF(AND(Mehrheitsrechner_Art_3_II_Prot!B26=\"x\",Mehrheitsrechner_Art_3_II_Prot!C26=\"J\"),1,0)","v":1},{"$f":"IF(AND(Mehrheitsrechner_Art_3_II_Prot!B26=\"x\",Mehrheitsrechner_Art_3_II_Prot!C26=\"N\"),1,0)","v":0},{"$f":"IF(AND(Mehrheitsrechner_ab_11_2014!H26=\"e\",Mehrheitsrechner_ab_11_2014!G26=\"x\"),1,0)","v":0},{"$f":"IF(Mehrheitsrechner_ab_11_2014!G33<28, IF(AND(SUM(Q27:Q32)<1,'Technische Tabelle'!N26<1),Mehrheitsrechner_ab_11_2014!K26,0),0)","v":0},{"$f":"IF(AND(Mehrheitsrechner_Art_3_II_Prot!C26=\"n\",Mehrheitsrechner_Art_3_II_Prot!B26=\"x\"),1*Mehrheitsrechner_Art_3_II_Prot!F26,0)","v":0},{"$f":"IF(AND(Mehrheitsrechner_Art_238_II!B30=\"x\",Mehrheitsrechner_Art_238_II!C30=\"J\"),1,0)","v":1},{"$f":"IF(AND(Mehrheitsrechner_Art_238_II!B30=\"x\",Mehrheitsrechner_Art_238_II!C30=\"N\"),1,0)","v":0},{"$f":"IF(AND(Mehrheitsrechner_Art_238_II!C30=\"e\",Mehrheitsrechner_Art_238_II!B30=\"x\"),1,0)","v":0},{"$f":"IF(Mehrheitsrechner_ab_11_2014!L33<28, IF(AND(SUM(V27:V32)<1,'Technische Tabelle'!S26<1),Mehrheitsrechner_ab_11_2014!P26,0),0)","v":0},{"$f":"IF(AND(Mehrheitsrechner_Art_238_II!C30=\"n\",Mehrheitsrechner_Art_238_II!B30=\"x\"),1*Mehrheitsrechner_Art_238_II!D30,0)","v":0}]
["Slowenien",{"$f":"IF(Mehrheitsrechner_ab_11_2014!C27=\"n\",1,0)","v":0},{"$f":"IF(Mehrheitsrechner_ab_11_2014!C27=\"n\",1*Mehrheitsrechner_ab_11_2014!D27,0)","v":0},{"$f":"IF(Mehrheitsrechner_Art_238_II!B31=\"n\",1,0)","v":0},{"$f":"IF(Mehrheitsrechner_Art_238_II!B31=\"n\",1*Mehrheitsrechner_Art_238_II!C31,0)","v":0},{"$f":"IF(Mehrheitsrechner_Art_3_II_Prot!C27=\"n\",1,0)","v":0},{"$f":"IF(Mehrheitsrechner_Art_3_II_Prot!C27=\"n\",1*Mehrheitsrechner_Art_3_II_Prot!F27,0)","v":0},null,{"$f":"IF(AND(Mehrheitsrechner_ab_11_2014!C27=\"J\",Mehrheitsrechner_ab_11_2014!B27=\"x\"),1,0)","v":1},{"$f":"IF(AND(Mehrheitsrechner_ab_11_2014!C27=\"N\",Mehrheitsrechner_ab_11_2014!B27=\"x\"),1,0)","v":0},{"$f":"IF(AND(Mehrheitsrechner_ab_11_2014!C27=\"e\",Mehrheitsrechner_ab_11_2014!B27=\"x\"),1,0)","v":0},{"$f":"IF(Mehrheitsrechner_ab_11_2014!B33<28, IF(AND(SUM(L28:L32)<1,'Technische Tabelle'!I27<1),Mehrheitsrechner_ab_11_2014!F27,0),0)","v":0},{"$f":"IF(AND(Mehrheitsrechner_ab_11_2014!C27=\"n\",Mehrheitsrechner_ab_11_2014!B27=\"x\"),1*Mehrheitsrechner_ab_11_2014!D27,0)","v":0},{"$f":"IF(AND(Mehrheitsrechner_Art_3_II_Prot!B27=\"x\",Mehrheitsrechner_Art_3_II_Prot!C27=\"J\"),1,0)","v":1},{"$f":"IF(AND(Mehrheitsrechner_Art_3_II_Prot!B27=\"x\",Mehrheitsrechner_Art_3_II_Prot!C27=\"N\"),1,0)","v":0},{"$f":"IF(AND(Mehrheitsrechner_ab_11_2014!H27=\"e\",Mehrheitsrechner_ab_11_2014!G27=\"x\"),1,0)","v":0},{"$f":"IF(Mehrheitsrechner_ab_11_2014!G33<28, IF(AND(SUM(Q28:Q32)<1,'Technische Tabelle'!N27<1),Mehrheitsrechner_ab_11_2014!K27,0),0)","v":0},{"$f":"IF(AND(Mehrheitsrechner_Art_3_II_Prot!C27=\"n\",Mehrheitsrechner_Art_3_II_Prot!B27=\"x\"),1*Mehrheitsrechner_Art_3_II_Prot!F27,0)","v":0},{"$f":"IF(AND(Mehrheitsrechner_Art_238_II!B31=\"x\",Mehrheitsrechner_Art_238_II!C31=\"J\"),1,0)","v":1},{"$f":"IF(AND(Mehrheitsrechner_Art_238_II!B31=\"x\",Mehrheitsrechner_Art_238_II!C31=\"N\"),1,0)","v":0},{"$f":"IF(AND(Mehrheitsrechner_Art_238_II!C31=\"e\",Mehrheitsrechner_Art_238_II!B31=\"x\"),1,0)","v":0},{"$f":"IF(Mehrheitsrechner_ab_11_2014!L33<28, IF(AND(SUM(V28:V32)<1,'Technische Tabelle'!S27<1),Mehrheitsrechner_ab_11_2014!P27,0),0)","v":0},{"$f":"IF(AND(Mehrheitsrechner_Art_238_II!C31=\"n\",Mehrheitsrechner_Art_238_II!B31=\"x\"),1*Mehrheitsrechner_Art_238_II!D31,0)","v":0}]
["Lettland",{"$f":"IF(Mehrheitsrechner_ab_11_2014!C28=\"n\",1,0)","v":0},{"$f":"IF(Mehrheitsrechner_ab_11_2014!C28=\"n\",1*Mehrheitsrechner_ab_11_2014!D28,0)","v":0},{"$f":"IF(Mehrheitsrechner_Art_238_II!B32=\"n\",1,0)","v":0},{"$f":"IF(Mehrheitsrechner_Art_238_II!B32=\"n\",1*Mehrheitsrechner_Art_238_II!C32,0)","v":0},{"$f":"IF(Mehrheitsrechner_Art_3_II_Prot!C28=\"n\",1,0)","v":0},{"$f":"IF(Mehrheitsrechner_Art_3_II_Prot!C28=\"n\",1*Mehrheitsrechner_Art_3_II_Prot!F28,0)","v":0},null,{"$f":"IF(AND(Mehrheitsrechner_ab_11_2014!C28=\"J\",Mehrheitsrechner_ab_11_2014!B28=\"x\"),1,0)","v":1},{"$f":"IF(AND(Mehrheitsrechner_ab_11_2014!C28=\"N\",Mehrheitsrechner_ab_11_2014!B28=\"x\"),1,0)","v":0},{"$f":"IF(AND(Mehrheitsrechner_ab_11_2014!C28=\"e\",Mehrheitsrechner_ab_11_2014!B28=\"x\"),1,0)","v":0},{"$f":"IF(Mehrheitsrechner_ab_11_2014!B33<28, IF(AND(SUM(L29:L32)<1,'Technische Tabelle'!I28<1),Mehrheitsrechner_ab_11_2014!F28,0),0)","v":0},{"$f":"IF(AND(Mehrheitsrechner_ab_11_2014!C28=\"n\",Mehrheitsrechner_ab_11_2014!B28=\"x\"),1*Mehrheitsrechner_ab_11_2014!D28,0)","v":0},{"$f":"IF(AND(Mehrheitsrechner_Art_3_II_Prot!B28=\"x\",Mehrheitsrechner_Art_3_II_Prot!C28=\"J\"),1,0)","v":1},{"$f":"IF(AND(Mehrheitsrechner_Art_3_II_Prot!B28=\"x\",Mehrheitsrechner_Art_3_II_Prot!C28=\"N\"),1,0)","v":0},{"$f":"IF(AND(Mehrheitsrechner_ab_11_2014!H28=\"e\",Mehrheitsrechner_ab_11_2014!G28=\"x\"),1,0)","v":0},{"$f":"IF(Mehrheitsrechner_ab_11_2014!G33<28, IF(AND(SUM(Q29:Q32)<1,'Technische Tabelle'!N28<1),Mehrheitsrechner_ab_11_2014!K28,0),0)","v":0},{"$f":"IF(AND(Mehrheitsrechner_Art_3_II_Prot!C28=\"n\",Mehrheitsrechner_Art_3_II_Prot!B28=\"x\"),1*Mehrheitsrechner_Art_3_II_Prot!F28,0)","v":0},{"$f":"IF(AND(Mehrheitsrechner_Art_238_II!B32=\"x\",Mehrheitsrechner_Art_238_II!C32=\"J\"),1,0)","v":1},{"$f":"IF(AND(Mehrheitsrechner_Art_238_II!B32=\"x\",Mehrheitsrechner_Art_238_II!C32=\"N\"),1,0)","v":0},{"$f":"IF(AND(Mehrheitsrechner_Art_238_II!C32=\"e\",Mehrheitsrechner_Art_238_II!B32=\"x\"),1,0)","v":0},{"$f":"IF(Mehrheitsrechner_ab_11_2014!L33<28, IF(AND(SUM(V29:V32)<1,'Technische Tabelle'!S28<1),Mehrheitsrechner_ab_11_2014!P28,0),0)","v":0},{"$f":"IF(AND(Mehrheitsrechner_Art_238_II!C32=\"n\",Mehrheitsrechner_Art_238_II!B32=\"x\"),1*Mehrheitsrechner_Art_238_II!D32,0)","v":0}]
["Estland",{"$f":"IF(Mehrheitsrechner_ab_11_2014!C29=\"n\",1,0)","v":0},{"$f":"IF(Mehrheitsrechner_ab_11_2014!C29=\"n\",1*Mehrheitsrechner_ab_11_2014!D29,0)","v":0},{"$f":"IF(Mehrheitsrechner_Art_238_II!B33=\"n\",1,0)","v":0},{"$f":"IF(Mehrheitsrechner_Art_238_II!B33=\"n\",1*Mehrheitsrechner_Art_238_II!C33,0)","v":0},{"$f":"IF(Mehrheitsrechner_Art_3_II_Prot!C29=\"n\",1,0)","v":0},{"$f":"IF(Mehrheitsrechner_Art_3_II_Prot!C29=\"n\",1*Mehrheitsrechner_Art_3_II_Prot!F29,0)","v":0},null,{"$f":"IF(AND(Mehrheitsrechner_ab_11_2014!C29=\"J\",Mehrheitsrechner_ab_11_2014!B29=\"x\"),1,0)","v":1},{"$f":"IF(AND(Mehrheitsrechner_ab_11_2014!C29=\"N\",Mehrheitsrechner_ab_11_2014!B29=\"x\"),1,0)","v":0},{"$f":"IF(AND(Mehrheitsrechner_ab_11_2014!C29=\"e\",Mehrheitsrechner_ab_11_2014!B29=\"x\"),1,0)","v":0},{"$f":"IF(Mehrheitsrechner_ab_11_2014!B33<28, IF(AND(SUM(L30:L32)<1,'Technische Tabelle'!I29<1),Mehrheitsrechner_ab_11_2014!F29,0),0)","v":0},{"$f":"IF(AND(Mehrheitsrechner_ab_11_2014!C29=\"n\",Mehrheitsrechner_ab_11_2014!B29=\"x\"),1*Mehrheitsrechner_ab_11_2014!D29,0)","v":0},{"$f":"IF(AND(Mehrheitsrechner_Art_3_II_Prot!B29=\"x\",Mehrheitsrechner_Art_3_II_Prot!C29=\"J\"),1,0)","v":1},{"$f":"IF(AND(Mehrheitsrechner_Art_3_II_Prot!B29=\"x\",Mehrheitsrechner_Art_3_II_Prot!C29=\"N\"),1,0)","v":0},{"$f":"IF(AND(Mehrheitsrechner_ab_11_2014!H29=\"e\",Mehrheitsrechner_ab_11_2014!G29=\"x\"),1,0)","v":0},{"$f":"IF(Mehrheitsrechner_ab_11_2014!G33<28, IF(AND(SUM(Q30:Q32)<1,'Technische Tabelle'!N29<1),Mehrheitsrechner_ab_11_2014!K29,0),0)","v":0},{"$f":"IF(AND(Mehrheitsrechner_Art_3_II_Prot!C29=\"n\",Mehrheitsrechner_Art_3_II_Prot!B29=\"x\"),1*Mehrheitsrechner_Art_3_II_Prot!F29,0)","v":0},{"$f":"IF(AND(Mehrheitsrechner_Art_238_II!B33=\"x\",Mehrheitsrechner_Art_238_II!C33=\"J\"),1,0)","v":1},{"$f":"IF(AND(Mehrheitsrechner_Art_238_II!B33=\"x\",Mehrheitsrechner_Art_238_II!C33=\"N\"),1,0)","v":0},{"$f":"IF(AND(Mehrheitsrechner_Art_238_II!C33=\"e\",Mehrheitsrechner_Art_238_II!B33=\"x\"),1,0)","v":0},{"$f":"IF(Mehrheitsrechner_ab_11_2014!L33<28, IF(AND(SUM(V30:V32)<1,'Technische Tabelle'!S29<1),Mehrheitsrechner_ab_11_2014!P29,0),0)","v":0},{"$f":"IF(AND(Mehrheitsrechner_Art_238_II!C33=\"n\",Mehrheitsrechner_Art_238_II!B33=\"x\"),1*Mehrheitsrechner_Art_238_II!D33,0)","v":0}]
["Zypern",{"$f":"IF(Mehrheitsrechner_ab_11_2014!C30=\"n\",1,0)","v":0},{"$f":"IF(Mehrheitsrechner_ab_11_2014!C30=\"n\",1*Mehrheitsrechner_ab_11_2014!D30,0)","v":0},{"$f":"IF(Mehrheitsrechner_Art_238_II!B34=\"n\",1,0)","v":0},{"$f":"IF(Mehrheitsrechner_Art_238_II!B34=\"n\",1*Mehrheitsrechner_Art_238_II!C34,0)","v":0},{"$f":"IF(Mehrheitsrechner_Art_3_II_Prot!C30=\"n\",1,0)","v":0},{"$f":"IF(Mehrheitsrechner_Art_3_II_Prot!C30=\"n\",1*Mehrheitsrechner_Art_3_II_Prot!F30,0)","v":0},null,{"$f":"IF(AND(Mehrheitsrechner_ab_11_2014!C30=\"J\",Mehrheitsrechner_ab_11_2014!B30=\"x\"),1,0)","v":1},{"$f":"IF(AND(Mehrheitsrechner_ab_11_2014!C30=\"N\",Mehrheitsrechner_ab_11_2014!B30=\"x\"),1,0)","v":0},{"$f":"IF(AND(Mehrheitsrechner_ab_11_2014!C30=\"e\",Mehrheitsrechner_ab_11_2014!B30=\"x\"),1,0)","v":0},{"$f":"IF(Mehrheitsrechner_ab_11_2014!B33<28, IF(AND(SUM(L31:L32)<1,'Technische Tabelle'!I30<1),Mehrheitsrechner_ab_11_2014!F30,0),0)","v":0},{"$f":"IF(AND(Mehrheitsrechner_ab_11_2014!C30=\"n\",Mehrheitsrechner_ab_11_2014!B30=\"x\"),1*Mehrheitsrechner_ab_11_2014!D30,0)","v":0},{"$f":"IF(AND(Mehrheitsrechner_Art_3_II_Prot!B30=\"x\",Mehrheitsrechner_Art_3_II_Prot!C30=\"J\"),1,0)","v":1},{"$f":"IF(AND(Mehrheitsrechner_Art_3_II_Prot!B30=\"x\",Mehrheitsrechner_Art_3_II_Prot!C30=\"N\"),1,0)","v":0},{"$f":"IF(AND(Mehrheitsrechner_ab_11_2014!H30=\"e\",Mehrheitsrechner_ab_11_2014!G30=\"x\"),1,0)","v":0},{"$f":"IF(Mehrheitsrechner_ab_11_2014!G33<28, IF(AND(SUM(Q31:Q32)<1,'Technische Tabelle'!N30<1),Mehrheitsrechner_ab_11_2014!K30,0),0)","v":0},{"$f":"IF(AND(Mehrheitsrechner_Art_3_II_Prot!C30=\"n\",Mehrheitsrechner_Art_3_II_Prot!B30=\"x\"),1*Mehrheitsrechner_Art_3_II_Prot!F30,0)","v":0},{"$f":"IF(AND(Mehrheitsrechner_Art_238_II!B34=\"x\",Mehrheitsrechner_Art_238_II!C34=\"J\"),1,0)","v":1},{"$f":"IF(AND(Mehrheitsrechner_Art_238_II!B34=\"x\",Mehrheitsrechner_Art_238_II!C34=\"N\"),1,0)","v":0},{"$f":"IF(AND(Mehrheitsrechner_Art_238_II!C34=\"e\",Mehrheitsrechner_Art_238_II!B34=\"x\"),1,0)","v":0},{"$f":"IF(Mehrheitsrechner_ab_11_2014!L33<28, IF(AND(SUM(V31:V32)<1,'Technische Tabelle'!S30<1),Mehrheitsrechner_ab_11_2014!P30,0),0)","v":0},{"$f":"IF(AND(Mehrheitsrechner_Art_238_II!C34=\"n\",Mehrheitsrechner_Art_238_II!B34=\"x\"),1*Mehrheitsrechner_Art_238_II!D34,0)","v":0}]
["Luxemburg",{"$f":"IF(Mehrheitsrechner_ab_11_2014!C31=\"n\",1,0)","v":0},{"$f":"IF(Mehrheitsrechner_ab_11_2014!C31=\"n\",1*Mehrheitsrechner_ab_11_2014!D31,0)","v":0},{"$f":"IF(Mehrheitsrechner_Art_238_II!B35=\"n\",1,0)","v":0},{"$f":"IF(Mehrheitsrechner_Art_238_II!B35=\"n\",1*Mehrheitsrechner_Art_238_II!C35,0)","v":0},{"$f":"IF(Mehrheitsrechner_Art_3_II_Prot!C31=\"n\",1,0)","v":0},{"$f":"IF(Mehrheitsrechner_Art_3_II_Prot!C31=\"n\",1*Mehrheitsrechner_Art_3_II_Prot!F31,0)","v":0},null,{"$f":"IF(AND(Mehrheitsrechner_ab_11_2014!C31=\"J\",Mehrheitsrechner_ab_11_2014!B31=\"x\"),1,0)","v":1},{"$f":"IF(AND(Mehrheitsrechner_ab_11_2014!C31=\"N\",Mehrheitsrechner_ab_11_2014!B31=\"x\"),1,0)","v":0},{"$f":"IF(AND(Mehrheitsrechner_ab_11_2014!C31=\"e\",Mehrheitsrechner_ab_11_2014!B31=\"x\"),1,0)","v":0},{"$f":"IF(Mehrheitsrechner_ab_11_2014!B33<28, IF(AND(SUM(L32<1),'Technische Tabelle'!I31<1),Mehrheitsrechner_ab_11_2014!F31,0),0)","v":0},{"$f":"IF(AND(Mehrheitsrechner_ab_11_2014!C31=\"n\",Mehrheitsrechner_ab_11_2014!B31=\"x\"),1*Mehrheitsrechner_ab_11_2014!D31,0)","v":0},{"$f":"IF(AND(Mehrheitsrechner_Art_3_II_Prot!B31=\"x\",Mehrheitsrechner_Art_3_II_Prot!C31=\"J\"),1,0)","v":1},{"$f":"IF(AND(Mehrheitsrechner_Art_3_II_Prot!B31=\"x\",Mehrheitsrechner_Art_3_II_Prot!C31=\"N\"),1,0)","v":0},{"$f":"IF(AND(Mehrheitsrechner_ab_11_2014!H31=\"e\",Mehrheitsrechner_ab_11_2014!G31=\"x\"),1,0)","v":0},{"$f":"IF(Mehrheitsrechner_ab_11_2014!G33<28, IF(AND(SUM(Q32<1),'Technische Tabelle'!N31<1),Mehrheitsrechner_ab_11_2014!K31,0),0)","v":0},{"$f":"IF(AND(Mehrheitsrechner_Art_3_II_Prot!C31=\"n\",Mehrheitsrechner_Art_3_II_Prot!B31=\"x\"),1*Mehrheitsrechner_Art_3_II_Prot!F31,0)","v":0},{"$f":"IF(AND(Mehrheitsrechner_Art_238_II!B35=\"x\",Mehrheitsrechner_Art_238_II!C35=\"J\"),1,0)","v":1},{"$f":"IF(AND(Mehrheitsrechner_Art_238_II!B35=\"x\",Mehrheitsrechner_Art_238_II!C35=\"N\"),1,0)","v":0},{"$f":"IF(AND(Mehrheitsrechner_Art_238_II!C35=\"e\",Mehrheitsrechner_Art_238_II!B35=\"x\"),1,0)","v":0},{"$f":"IF(Mehrheitsrechner_ab_11_2014!L33<28, IF(AND(SUM(V32<1),'Technische Tabelle'!S31<1),Mehrheitsrechner_ab_11_2014!P31,0),0)","v":0},{"$f":"IF(AND(Mehrheitsrechner_Art_238_II!C35=\"n\",Mehrheitsrechner_Art_238_II!B35=\"x\"),1*Mehrheitsrechner_Art_238_II!D35,0)","v":0}]
["Malta",{"$f":"IF(Mehrheitsrechner_ab_11_2014!C32=\"n\",1,0)","v":0},{"$f":"IF(Mehrheitsrechner_ab_11_2014!C32=\"n\",1*Mehrheitsrechner_ab_11_2014!D32,0)","v":0},{"$f":"IF(Mehrheitsrechner_Art_238_II!B36=\"n\",1,0)","v":0},{"$f":"IF(Mehrheitsrechner_Art_238_II!B36=\"n\",1*Mehrheitsrechner_Art_238_II!C36,0)","v":0},{"$f":"IF(Mehrheitsrechner_Art_3_II_Prot!C32=\"n\",1,0)","v":0},{"$f":"IF(Mehrheitsrechner_Art_3_II_Prot!C32=\"n\",1*Mehrheitsrechner_Art_3_II_Prot!F32,0)","v":0},null,{"$f":"IF(AND(Mehrheitsrechner_ab_11_2014!C32=\"J\",Mehrheitsrechner_ab_11_2014!B32=\"x\"),1,0)","v":1},{"$f":"IF(AND(Mehrheitsrechner_ab_11_2014!C32=\"N\",Mehrheitsrechner_ab_11_2014!B32=\"x\"),1,0)","v":0},{"$f":"IF(AND(Mehrheitsrechner_ab_11_2014!C32=\"e\",Mehrheitsrechner_ab_11_2014!B32=\"x\"),1,0)","v":0},{"$f":"IF(Mehrheitsrechner_ab_11_2014!B33<28, IF('Technische Tabelle'!I32<1,Mehrheitsrechner_ab_11_2014!F32,0), 0)","v":0},{"$f":"IF(AND(Mehrheitsrechner_ab_11_2014!C32=\"n\",Mehrheitsrechner_ab_11_2014!B32=\"x\"),1*Mehrheitsrechner_ab_11_2014!D32,0)","v":0},{"$f":"IF(AND(Mehrheitsrechner_Art_3_II_Prot!B32=\"x\",Mehrheitsrechner_Art_3_II_Prot!C32=\"J\"),1,0)","v":1},{"$f":"IF(AND(Mehrheitsrechner_Art_3_II_Prot!B32=\"x\",Mehrheitsrechner_Art_3_II_Prot!C32=\"N\"),1,0)","v":0},{"$f":"IF(AND(Mehrheitsrechner_ab_11_2014!H32=\"e\",Mehrheitsrechner_ab_11_2014!G32=\"x\"),1,0)","v":0},{"$f":"IF(Mehrheitsrechner_ab_11_2014!G33<28, IF('Technische Tabelle'!N32<1,Mehrheitsrechner_ab_11_2014!K32,0), 0)","v":0},{"$f":"IF(AND(Mehrheitsrechner_Art_3_II_Prot!C32=\"n\",Mehrheitsrechner_Art_3_II_Prot!B32=\"x\"),1*Mehrheitsrechner_Art_3_II_Prot!F32,0)","v":0},{"$f":"IF(AND(Mehrheitsrechner_Art_238_II!B36=\"x\",Mehrheitsrechner_Art_238_II!C36=\"J\"),1,0)","v":1},{"$f":"IF(AND(Mehrheitsrechner_Art_238_II!B36=\"x\",Mehrheitsrechner_Art_238_II!C36=\"N\"),1,0)","v":0},{"$f":"IF(AND(Mehrheitsrechner_Art_238_II!C36=\"e\",Mehrheitsrechner_Art_238_II!B36=\"x\"),1,0)","v":0},{"$f":"IF(Mehrheitsrechner_ab_11_2014!L33<28, IF('Technische Tabelle'!S32<1,Mehrheitsrechner_ab_11_2014!P32,0), 0)","v":0},{"$f":"IF(AND(Mehrheitsrechner_Art_238_II!C36=\"n\",Mehrheitsrechner_Art_238_II!B36=\"x\"),1*Mehrheitsrechner_Art_238_II!D36,0)","v":0}]
[]
[null,{"$f":"SUM(B5:B32)","v":0},0,0,0,0,0,null,28,0,0,null,{"$f":"SUM(M5:M32)","v":0},{"$f":"SUM(N5:N32)","v":28},0,0,null,{"$f":"SUM(R5:R32)","v":0},{"$f":"SUM(S5:S32)","v":28},0,0,null,{"$f":"SUM(W5:W32)","v":0}]
[null,null,null,null,null,null,null,null,null,null,null,"Sperrminorität erfüllt?"]
[null,null,null,null,null,null,null,null,null,null,null,{"$f":"IF(AND(Mehrheitsrechner_ab_11_2014!B33<28, Mehrheitsrechner_ab_11_2014!F33-SUM(L5:L32)>Mehrheitsrechner_ab_11_2014!D33*0.35), \"Ja\", \"Nein\")","v":"Nein"}]
[]
[null,"Die Tabellen in Spalten B-G werden in der aktuellen Fassung des Mehrheitsrechners nicht mehr benötigt; bitte die Spalten nicht entfernen, ohne die Formeln anzupassen, weil anderenfalls die Bezüge verloren gehen. [Mit Bitte um Entschuldigung für die unsaubere Programmierung.]",null,null,null,null,null,null,null,null,null,"[Erläuterung: Diese Spalte berechnet dann, wenn weniger als 28 MS an der Abstimmung teilnehmen, ob die Sperrminorität erfüllt ist (Ms, die 35 % der abstimmenden Bevölkerung ausmachen, zzgl. 1 MS). Oben wird der kleinste MS eingetragen, der teilnimmt, aber nicht mit JA gestimmt hat; anschließend wird geprüft, ob die nicht-zustimmende Bevölkerung, abzüglich der Bevölkerung dieses kleinsten MS noch immer mehr als 35 % der insgesamt beteiligten Bevölkerung ausmacht; dann ist die Sperrminorität erfüllt, sonst nicht) ",null,null,null,null,"[Diese Spalte ist aktuell ohne Funktion]",null,null,null,null,"[Diese Spalte ist aktuell ohne Funktion]"]

{"sheet":"Tabelle1","index":5,"n_rows":0,"n_cols":0,"rows_kept":0,"cut":false,"hidden":true,"merged":[]}

{"sheet":"Tabelle2","index":6,"n_rows":0,"n_cols":0,"rows_kept":0,"cut":false,"hidden":false,"merged":[]}